Cogmind - Beta 16 @@@ ROGUE MODE // 2025.10.25 @ 22:49:58 Player: Zaros426 Result: Destroyed by Striker with Plasma Lance Performance ------------- Evolutions (8) 4000 Regions Visited (27) 5400 Robots Destroyed (228) 1140 Value Destroyed (7487) 7487 Prototype IDs (177) 3540 Alien Tech Used (7) 1400 Bonus (11953) 11953 TOTAL SCORE: 34920 Bonus ------- High Alert Combat Kills 169 Follower Combat Kills 4619 Registered with UFD 300 Met Optimus in HQ 500 Met Data Miner 300 Met Zhirov 300 Met Warlord at Base 500 MAIN.C Attacked Warlord 500 Warlord Defense Kills 746 Used Core Reset Matrix 3000 Hacked Protovariant 500 Met Optimus at Protoforge 1000 Friendly Fire -481 Cogmind --------- Core Integrity 0/1450 Matter 295/300 Energy 600/600 System Corruption 18% Temperature Cool (0) Movement Walking (110) Location -2/Protoforge Parts ------- > --- POWER (2) -------- Improved Quantum Reactor Improved Quantum Reactor > --- PROPULSION (10) -- Myomer Leg Overtuned Armored Exoskeleton Enhanced Biometal Leg Enhanced Biometal Leg Enhanced Biometal Leg Enhanced Biometal Leg Heavy Shield Leg > --- UTILITY (10) ----- Experimental Heat Sink High-capacity Storage Unit Spectral Analyzer Advanced Melee Analysis Suite Advanced Melee Analysis Suite Experimental Core Analyzer Experimental Core Analyzer Experimental Armor Integrity Analyzer > --- WEAPON (2) ------- (None) > --- INVENTORY (20) --- Light Quantum Reactor Improved Antigrav System Improved Antigrav System Improved Antigrav System Improved Antigrav System Advanced Heat Sink Experimental Energy Well (600) Plexus Tether Experimental Kinecellerator Nanoactuators Experimental ECM Suite Experimental Shock Absorption System Advanced Point Defense System Amulet of Y3-NDR Concept XC Strikerail Omega Cannon Z-bomb Delivery System Peak State ------------ > --- POWER ------------ Improved Quantum Reactor Improved Quantum Reactor > --- PROPULSION ------- Overtuned Flexi-carbon Leg Myomer Leg Myomer Leg Overtuned Armored Exoskeleton Enhanced Biometal Leg Enhanced Biometal Leg Enhanced Biometal Leg Enhanced Biometal Leg > --- UTILITY ---------- High-capacity Storage Unit Spectral Analyzer Advanced Melee Analysis Suite Advanced Melee Analysis Suite Experimental Core Analyzer Experimental Core Analyzer Experimental Armor Integrity Analyzer SHELL Armor > --- WEAPON ----------- Sigix Broadsword > --- INVENTORY -------- Light Quantum Reactor Improved Quantum Reactor Improved Antigrav System Improved Antigrav System Improved Antigrav System Improved Antigrav System Advanced Heat Sink Experimental Energy Well Plexus Tether Experimental Kinecellerator Nanoactuators Experimental ECM Suite Experimental Shock Absorption System Advanced Point Defense System Amulet of Y3-NDR Concept XC Strikerail Omega Cannon Z-bomb Delivery System [Rating: 222] Favorites ----------- Power Hybrid Fission Core Engine Subdweller Power Source Power Core Hybrid Fission Core Reactor Light Antimatter Reactor Propulsion Antigrav System Treads Light Treads Leg Enhanced Biometal Leg Wheel Compact Wheel Hover Unit Antigrav System Flight Unit Nuclear Pulse Thruster Utility High-capacity Storage Unit Device Amulet of Y3-NDR Storage High-capacity Storage Unit Processor Spectral Analyzer Hackware Advanced Hacking Suite Protection Enhanced Scrap Shield Weapon Lance Energy Gun Subdweller Laser Energy Cannon Compact Ion Cannon Ballistic Gun Heavy Assault Rifle Ballistic Cannon Light Cannon Launcher Mini Smartbomb Launcher Special Weapon CPS Tube Impact Weapon Heavy Flail Slashing Weapon Power Sword Piercing Weapon Lance Special Melee Weapon Dirty Datajack Build | -11 -10 -10 -10 -9 -9 -6 -6 -6 -6 -6 -6 -5 -5 -5 -5 -5 -4 -4 -4 -4 -4 -3 -3 -3 -2 -2 -2 ------- Run | Yrd Mat Min Sub Rec Scr Fac Was Fac Low Low Dat Pro Fac Upp Upp Zhi Pro Fac Upp Upp War Pro Res Qua Res Tes Frg Slots Evolved 16 | . . . . . . 8 . . . . . . 2 . . . . 2 . . . . 2 . 2 . . Power 1 | . . . . . . . . . . . . . 1 . . . . . . . . . . . . . . Propulsion 8 | . . . . . . 3 . . . . . . 1 . . . . 1 . . . . 2 . 1 . . Utility 7 | . . . . . . 5 . . . . . . . . . . . 1 . . . . . . 1 . . Weapon . | . . . . . . . . . . . . . . . . . . . . . . . . . . . . Parts Attached 302 | 7 11 5 14 4 6 32 11 6 1 5 1 7 23 4 6 3 12 14 15 6 12 3 8 14 18 18 36 Power 33 | 1 1 . 1 . . 3 2 . . 1 . 1 3 1 2 . 3 1 . 1 1 . . 2 3 1 5 Engine 5 | 1 1 . 1 . . 2 . . . . . . . . . . . . . . . . . . . . . Core 9 | . . . . . . 1 2 . . . . 1 3 1 . . . . . . . . . 1 . . . Reactor 19 | . . . . . . . . . . 1 . . . . 2 . 3 1 . 1 1 . . 1 3 1 5 Propulsion 106 | 2 . 1 6 2 1 3 4 3 . 1 . 6 6 1 1 . 7 7 9 2 2 3 3 6 7 7 16 Treads 8 | 2 . 1 2 . . . 1 1 . 1 . . . . . . . . . . . . . . . . . Leg 10 | . . . . . . . . . . . . . . . . . . . . . . . . . . . 10 Wheel 8 | . . . 4 2 1 . . . . . . . . . . . . . . . . . . . . . 1 Hover 74 | . . . . . . . . 2 . . . 6 6 1 1 . 7 7 9 2 2 3 3 6 7 7 5 Flight 6 | . . . . . . 3 3 . . . . . . . . . . . . . . . . . . . . Utility 117 | 2 3 2 1 1 2 19 4 2 1 3 1 . 10 2 1 2 2 6 5 3 7 . 5 4 8 7 14 Device 47 | 1 1 2 1 . . 6 1 1 . 2 1 . 3 2 . . . 3 3 3 4 . 2 2 1 3 5 Storage 9 | 1 2 . . 1 1 1 1 . . . . . . . . 1 . . . . . . . 1 . . . Processor 26 | . . . . . . 7 . 1 . . . . 1 . . . . 1 1 . 2 . 1 . 2 3 7 Hackware 19 | . . . . . . 2 . . . . . . 6 . 1 . 2 1 . . . . 2 . 5 . . Protection 16 | . . . . . 1 3 2 . 1 1 . . . . . 1 . 1 1 . 1 . . 1 . 1 2 Artifact . | . . . . . . . . . . . . . . . . . . . . . . . . . . . . Weapon 46 | 2 7 2 6 1 3 7 1 1 . . . . 4 . 2 1 . . 1 . 2 . . 2 . 3 1 Energy Gun 6 | 2 1 . 2 . . . . . . . . . . . . . . . . . . . . . . 1 . Energy Cannon 5 | . . . 1 . . 1 1 . . . . . . . . . . . . . 1 . . 1 . . . Ballistic Gun 5 | . 2 . 2 . . . . 1 . . . . . . . . . . . . . . . . . . . Ballistic Cannon 5 | . 4 . . . . . . . . . . . . . . . . . . . . . . . . 1 . Launcher 9 | . . 1 1 . . 2 . . . . . . 3 . . . . . . . . . . . . 1 1 Special Weapon 3 | . . . . . 1 1 . . . . . . . . . 1 . . . . . . . . . . . Impact Weapon 1 | . . 1 . . . . . . . . . . . . . . . . . . . . . . . . . Slashing Weapon 5 | . . . . . 1 2 . . . . . . 1 . . . . . . . . . . 1 . . . Piercing Weapon 4 | . . . . . . 1 . . . . . . . . 2 . . . . . 1 . . . . . . Special Melee Weapon 3 | . . . . 1 1 . . . . . . . . . . . . . 1 . . . . . . . . Unidentified Prototypes 39 | . . . 1 . . 2 2 . 1 1 . . 2 . . 3 . . . 2 9 . . 3 . 6 7 Corrupted Parts 1 | . . . . . . . . . . . . . . . . . . . . 1 . . . . . . . System Corruption 1 | . . . . . . . . . . . . . . . . . . . . 1 . . . . . . . Parts Lost 88 | . 1 2 5 . . 5 1 . . . 3 . 9 1 1 . 3 4 2 1 1 4 . 12 10 6 17 Power 7 | . . . . . . 1 . . . . 1 . 1 . . . . . . . . . . . 2 . 2 Propulsion 50 | . . 1 4 . . 1 1 . . . . . 5 1 1 . 1 2 1 . . 2 . 7 5 6 12 Utility 26 | . 1 1 1 . . 2 . . . . 2 . 2 . . . 2 2 1 1 . 2 . 5 2 . 2 Weapon 5 | . . . . . . 1 . . . . . . 1 . . . . . . . 1 . . . 1 . 1 Highest Loss Streak 8 | . 1 2 2 . . 2 1 . . . 3 . 4 1 1 . 2 2 1 1 1 4 . 4 7 3 8 To Critical Strikes . | . . . . . . . . . . . . . . . . . . . . . . . . . . . . Average Backups 16 | . 9 14 14 16 19 8 9 17 15 17 18 16 17 18 19 19 18 18 18 18 18 15 18 16 13 16 12 Power . | . . 1 . . . . . 1 1 1 1 . . 1 . 1 1 1 1 1 1 1 1 1 . 2 1 Propulsion 2 | . . . 1 2 3 . . 1 . . . 2 1 . . 1 1 2 4 2 4 3 3 2 4 3 . Utility 8 | . 3 5 5 6 9 4 6 9 7 9 11 8 11 14 14 13 12 10 8 10 9 8 10 10 5 7 7 Weapon 4 | . 5 6 5 5 5 3 2 5 7 6 6 6 4 2 2 2 2 2 2 2 2 1 1 1 . 1 2 Tool/Special . | . . . . . . . . . . . . . . . . . . . . . . . . . . . . Unused Backups 96 | . 1 1 3 . 28 25 3 . 1 5 . 1 7 1 2 1 4 1 2 . . . . 1 . 1 8 Power 7 | . . . 1 . 2 2 . . . . . . . . . . . . . . . . . . . . 2 Propulsion 9 | . . . . . 5 3 . . . . . . . . . . 1 . . . . . . . . . . Utility 52 | . . . . . 12 10 3 . 1 4 . 1 5 1 2 1 3 1 2 . . . . 1 . . 5 Weapon 24 | . 1 1 2 . 8 8 . . . 1 . . 2 . . . . . . . . . . . . . 1 Tool/Special 4 | . . . . . 1 2 . . . . . . . . . . . . . . . . . . . 1 . Average Slot Usage (%) 85 | . 98 99 95 100 63 60 78 91 86 85 85 93 88 83 86 93 93 91 93 99 95 94 94 86 87 85 65 Engine 4 | . 14 14 14 14 5 2 . . . . . . . . . . . . . . . . . . . . . Core 2 | . . . . . . . 5 6 6 3 . 5 9 8 5 5 5 5 5 5 . . . . . . . Reactor 1 | . . . . . . . . . . 2 6 . . . 4 5 5 4 5 5 5 5 4 4 7 8 4 Treads 8 | . 27 27 11 14 5 . 4 12 13 18 20 15 . . . . . . . . . . . . . . . Wheel 6 | . . . 13 14 20 . . . . . . . . . . . . . . . . . . . . . . Hover 11 | . . . . . . . . 2 13 7 6 12 30 26 25 29 29 30 31 35 35 35 39 37 36 34 16 Device 11 | . 12 13 12 14 5 9 5 11 13 18 18 32 3 10 11 10 8 6 14 18 16 14 8 4 8 8 3 Storage 9 | . 14 14 14 14 13 5 5 6 6 6 6 6 5 5 5 5 5 5 5 5 5 5 4 4 4 4 3 Processor 5 | . . . . . . 15 17 15 13 6 6 6 5 5 5 5 5 8 9 10 16 20 16 14 9 11 16 Hackware 4 | . . . . . . 6 7 6 . . . . 23 17 17 17 18 18 10 6 5 5 9 12 14 12 6 Protection 1 | . . . . . . 2 4 5 5 6 6 . . . . . . 1 1 . 1 . . 1 2 1 1 Energy Cannon 1 | . . . 9 . . . . . 5 6 6 6 . . . . . . . . . . . 1 1 . . Ballistic Gun 3 | . 11 24 6 10 . . . 5 6 6 6 6 . . . . . . . . . . . . . . . Ballistic Cannon 1 | . 16 . . . . . . . . . . . . . . . . . . . . . . . . . . Impact Weapon 1 | . . . 2 13 1 1 . . . . . . . . . . . . . . . . . . . . . Slashing Weapon 1 | . . . . . . 3 5 6 . . . . 4 5 3 . . . . . . . . 1 2 3 2 Piercing Weapon 1 | . . . . . . . 1 . . . . . . . 2 8 8 5 7 6 6 9 4 1 . . . Special Melee Weapon 2 | . . . . 3 10 . . . . . . . . . . . . . . . 2 . 4 1 . . . Peak Build Rating 222 | 7 12 13 22 24 24 96 97 75 85 90 91 90 103 102 109 110 111 123 127 132 154 156 163 175 181 201 222 Average Rating 66 | 5 8 11 16 21 15 78 71 73 84 86 86 84 95 96 100 107 108 118 123 125 141 146 157 161 168 181 156 On Entrance 90 | . 7 12 13 22 24 22 89 70 75 85 87 62 90 100 102 107 108 111 115 127 131 154 151 159 149 157 201 Avg Prop Armor Cover (%) 9 | . . . 9 13 21 3 9 3 3 1 1 2 5 . . . . . . 5 . . 5 4 3 3 7 Naked Turns 120 | . . . . . 120 . . . . . . . . . . . . . . . . . . . . . . Heaviest Build 245 | 15 54 34 58 93 203 245 68 73 73 90 82 64 66 69 69 69 70 83 93 85 108 99 90 114 115 108 120 Greatest Support 246 | 40 40 40 40 20 32 32 70 92 92 120 120 120 70 69 71 71 71 83 85 85 87 87 111 108 120 129 246 Greatest Overweight (x) 12 | . 1 1 12 5 12 10 2 . . . . 1 1 . 1 . 1 1 1 1 1 1 . 1 1 . 3 Average Overweight (x) 1 | . . . 1 3 5 . . . . . . . . . . . . . . . . . . . . . . Largest Inventory Capacity 35 | 8 20 15 20 25 35 35 20 20 20 20 20 20 20 20 20 20 20 20 20 20 20 20 20 20 20 20 20 Average Capacity 21 | 7 18 15 17 21 30 12 16 20 20 20 20 20 20 20 20 20 20 20 20 20 20 20 20 20 20 20 18 Most Carried 35 | 1 16 15 20 25 35 35 20 20 20 20 20 20 20 20 20 20 20 20 20 20 20 20 20 20 17 20 20 Average Carried 18 | . 9 14 16 21 23 11 11 19 17 19 19 17 19 19 19 19 19 19 19 19 19 16 19 17 14 17 14 Final Capacity 35 | 8 15 15 20 25 35 10 20 20 20 20 20 20 20 20 20 20 20 20 20 20 20 20 20 20 20 20 20 Final Carried 35 | 1 15 14 20 25 35 10 20 20 17 20 20 19 20 20 20 20 20 20 20 20 20 20 20 16 17 17 18 Scrap Suit Usage (%) 1 | . . . . . . . . . . . . . . . . . . . . . . . . . . . 1 Class Distribution -------------------- 42% | Mutant 15% | Scavenger-Mutant 10% | Hacker-Mutant 10% | Hauler-Mutant 9% | Scavenger-Scout 3% | Hacker-Sprinter Dominant Class ---------------- Mutant | -10/Materials Mutant | -10/Mines Scavenger-Mutant | -10/Subcaves Mutant | -9/Recycling Hauler-Mutant | -9/Scraptown Mutant | -6/Factory Scavenger-Mutant | -6/Waste Scavenger-Mutant | -6/Factory Mutant | -6/Lower Caves Mutant | -6/Lower Caves Mutant | -6/Data Miner Scavenger-Mutant | -5/Proximity Caves Hacker-Mutant | -5/Factory Hacker-Mutant | -5/Upper Caves Hacker-Mutant | -5/Upper Caves Hacker-Mutant | -5/Zhirov Hacker-Mutant | -4/Proximity Caves Scavenger-Mutant | -4/Factory Scavenger-Scout | -4/Upper Caves Scavenger-Scout | -4/Upper Caves Scavenger-Mutant | -4/Warlord Scavenger-Scout | -3/Proximity Caves Scavenger-Sprinter | -3/Research Hacker-Sprinter | -3/Quarantine Hacker-Sprinter | -2/Research Hacker-Sprinter | -2/Testing Scavenger-Gladiator | -2/Protoforge Resources | -11 -10 -10 -10 -9 -9 -6 -6 -6 -6 -6 -6 -5 -5 -5 -5 -5 -4 -4 -4 -4 -4 -3 -3 -3 -2 -2 -2 ----------- Run | Yrd Mat Min Sub Rec Scr Fac Was Fac Low Low Dat Pro Fac Upp Upp Zhi Pro Fac Upp Upp War Pro Res Qua Res Tes Frg Matter Collected 8887 | 270 749 236 307 128 80 475 130 70 64 170 . 145 424 202 90 . 497 399 610 378 369 186 110 203 245 441 1909 Remotely . | . . . . . . . . . . . . . . . . . . . . . . . . . . . . Salvage Created 9048 | 155 853 355 263 1224 . 1067 67 16 68 125 . . 733 105 21 . 587 836 430 154 222 176 392 455 133 241 370 Parts 430 | 16 56 15 25 9 . 55 4 5 . 5 . . 41 3 2 . 24 45 30 5 5 12 13 19 7 7 27 Haulers Intercepted 13 | . 2 . . . . 2 . . . . . . 4 . . . . 2 . . . . 2 1 . . . Recyclers Shooed 4 | 1 2 . . . . . . . . . . . . . . . . 1 . . . . . . . . . Parts Field Recycled . | . . . . . . . . . . . . . . . . . . . . . . . . . . . . Retrieved Matter . | . . . . . . . . . . . . . . . . . . . . . . . . . . . . Parts Self-Destructed 160 | . . . 14 . . . . . 21 19 . 10 . 5 16 . 27 . 23 2 . 23 . . . . . Prevented 162 | . . . . . . . . . . 18 . 12 . 12 21 . 40 . 36 9 . 14 . . . . . Parts Restored 2 | . . . . . . . . . . . . . . . . . . . . 2 . . . . . . . Broken 2 | . . . . . . . . . . . . . . . . . . . . 2 . . . . . . . Kills | -11 -10 -10 -10 -9 -9 -6 -6 -6 -6 -6 -6 -5 -5 -5 -5 -5 -4 -4 -4 -4 -4 -3 -3 -3 -2 -2 -2 ------- Run | Yrd Mat Min Sub Rec Scr Fac Was Fac Low Low Dat Pro Fac Upp Upp Zhi Pro Fac Upp Upp War Pro Res Qua Res Tes Frg Combat Hostiles Destroyed 139 | . 12 9 10 . . 17 . . 1 2 . . 9 1 1 . 8 11 10 2 7 6 . 6 1 3 23 Melee 38 | . . . . . . 14 . . . . . . . 1 1 . . 2 3 . 1 6 . 2 1 . 7 Guns 13 | . . 6 6 . . . . . . 1 . . . . . . . . . . . . . . . . . Cannons 20 | . 12 . 2 . . . . . . 1 . . . . . . . . . . . . . 3 . . 2 AOE 64 | . . 3 2 . . 2 . . . . . . 9 . . . 8 9 7 2 6 . . . . 3 13 Classes Destroyed 25 | 2 6 1 1 . . 4 . . . 1 . . 1 2 . . 1 . . 1 1 1 1 . . . 2 Worker 17 | . 3 2 . . . 3 . . . . . . 4 . . . . 3 . . . . 1 . . 1 . Builder 11 | . 4 1 . 1 . 3 . 1 . . . . . . . . 1 . . . . . . . . . . Tunneler 10 | 3 1 . . . . 1 . . . . . . 4 . . . . . . . . . . . 1 . . Hauler 13 | . 2 . . . . 2 . . . . . . 4 . . . . 2 . . . . 2 1 . . . Recycler 25 | 1 4 3 . 10 . 1 . . . . . . . . . . 2 2 . . . . 1 . . 1 . Minesweeper 2 | . . . . . . . . . . . . . . 1 . . . . 1 . . . . . . . . Mechanic 4 | . . . . . . . . . . . . . 1 . . . . 1 . . . . . 1 . . 1 Operator 2 | . . . . . . . . . . . . . . . . . . . . . . . 1 . 1 . . Drone 6 | . . . . . . . . . . . . . . . . . . . . . . 1 . . . . 5 Watcher 6 | . 3 . . . . 1 . . . . . . 1 . . . . . . . . . . . 1 . . Swarmer 59 | . 5 4 4 . . 10 . . . . . . 7 1 1 . . 7 5 . 4 5 . 3 1 . 2 Saboteur 2 | . . . . . . . . . . . . . . . . . . . . . . . . . . . 2 Grunt 32 | . 7 . . . . 2 . . 1 1 . . . . . . 6 2 2 1 1 . . . . 3 6 Duelist 1 | . . . . . . . . . . 1 . . . . . . . . . . . . . . . . . Protector 1 | . . . . . . 1 . . . . . . . . . . . . . . . . . . . . . Researcher 2 | . . . . . . . . . . . . . . . . . . . . 1 . . . . . 1 . Sentry 2 | . . . . . . 2 . . . . . . . . . . . . . . . . . . . . . Demolisher 1 | . . . . . . 1 . . . . . . . . . . . . . . . . . . . . . Hunter 6 | . . . . . . . . . . . . . . . . . 2 . 2 . 1 . . . . . 1 Programmer 11 | . . . . . . 1 . . . . . . 2 . . . . 2 1 1 . . . 3 . . 1 Hotshot 4 | . . . . . . . . . . . . . . . . . . . . . . . . . . . 4 Striker 2 | . . . . . . . . . . . . . . . . . . . . . 1 . . . . . 1 Executioner 1 | . . . . . . . . . . . . . . . . . . . . . . . . . . . 1 Subdweller 7 | . . . 7 . . . . . . . . . . . . . . . . . . . . . . . . Samaritan 2 | . . . . . . . . . . . . . . 1 . . . . 1 . . . . . . . . Assembled 5 | . . 5 . . . . . . . . . . . . . . . . . . . . . . . . . Martyr 1 | . . . . . . . 1 . . . . . . . . . . . . . . . . . . . . Best Kill Streak 7 | 4 5 3 2 2 . 6 . 1 1 1 . . 4 1 1 . 6 7 5 1 6 5 3 4 2 5 5 Combat Bots Only 6 | . 4 3 2 . . 4 . . 1 1 . . 4 1 1 . 6 4 5 1 6 5 . 4 1 3 5 Max Kills in Single Turn 4 | 1 2 2 1 1 . 1 1 1 1 1 . . 4 1 1 . 2 4 3 1 4 1 1 1 1 3 4 Gunslinging . | . . . . . . . . . . . . . . . . . . . . . . . . . . . . Exploded 4 | . . 2 1 . . 1 . . . . . . 4 . . . 2 4 3 1 4 . . . . 3 4 Melee 1 | . . . . . . 1 . . . . . . . 1 1 . . 1 1 . 1 1 . 1 1 . 1 Uniques/NPCs Destroyed . | . . . . . . . . . . . . . . . . . . . . . . . . . . . . Combat | -11 -10 -10 -10 -9 -9 -6 -6 -6 -6 -6 -6 -5 -5 -5 -5 -5 -4 -4 -4 -4 -4 -3 -3 -3 -2 -2 -2 -------- Run | Yrd Mat Min Sub Rec Scr Fac Was Fac Low Low Dat Pro Fac Upp Upp Zhi Pro Fac Upp Upp War Pro Res Qua Res Tes Frg Hostile Shots Fired 1541 | . 66 26 59 . . 239 1 . 6 9 22 1 98 5 5 . 34 71 32 12 28 48 13 225 132 103 306 Missed 583 | . 17 10 18 . . 97 . . 1 3 7 1 41 1 2 . 20 29 15 5 12 19 7 96 48 37 97 Hits 958 | . 49 16 41 . . 142 1 . 5 6 15 . 57 4 3 . 14 42 17 7 16 29 6 129 84 66 209 Melee 47 | . . 5 . . . . 1 . . 5 . . . . . . 1 . . . . . . . . . 35 Projectile 911 | . 49 11 41 . . 142 . . 5 1 15 . 57 4 3 . 13 42 17 7 16 29 6 129 84 66 174 AOE 13 | . . . . . . 13 . . . . . . . . . . . . . . . . . . . . . Critical Strikes 44 | . . . 3 . . 2 . . 1 1 . . 2 . . . 2 . 3 1 . . . 5 1 4 19 Actively Blocked 1 | . . . . . . . . . . . . . . . . . . . 1 . . . . . . . . Part Disruptions 3 | . . . . . . . . . . . . . 1 . . . . . . . . . . 1 . 1 . Damage Taken 20677 | . 454 233 771 . . 2289 45 . 90 201 849 . 930 59 66 . 486 648 220 77 181 517 163 2074 1565 1303 7456 Core 2623 | . 66 . 155 . . 168 . . 18 . . . 205 28 . . 104 85 18 11 . 65 71 246 153 34 1196 Absorbed by Shields 1680 | . . 39 . . . . . . . . . . . . . . . 140 135 81 147 147 . 529 275 137 50 Redirected to Shielding 64 | . . . . . . . . . . . . . . . . . . . . . . . . . . . 64 Regen/Repaired (Parts) 3497 | . 93 . . . . . . . . . . . 120 . . . . 117 . . 18 . . 167 388 831 1763 Core Remaining (%) 69 | 100 . . . . 11 . . . . . . 78 . . . . 66 . . . . 84 . 75 . . . Volleys Fired 260 | 11 54 22 48 2 . 6 . . 6 15 . 1 11 . . 4 10 8 8 8 2 . . 20 4 1 19 Largest 2 | 2 2 2 2 2 . 1 . . 2 2 . 1 1 . . 1 1 1 1 1 1 . . 1 1 1 1 Hottest 140 | 90 60 46 140 110 . 90 . . 120 120 . 90 90 . . 7 80 80 80 80 80 . . 40 40 30 100 Shots Fired 398 | 22 108 40 81 2 . 6 . . 12 30 . 1 11 . . 4 10 8 8 8 2 . . 21 4 1 19 Gun 137 | 22 8 36 48 2 . . . . 6 15 . . . . . . . . . . . . . . . . . Cannon 188 | . 100 . 29 . . 1 . . 6 15 . 1 3 . . . . . . . . . . 21 4 . 8 Launcher 69 | . . 4 4 . . 5 . . . . . . 8 . . . 10 8 8 8 2 . . . . 1 11 Special 4 | . . . . . . . . . . . . . . . . 4 . . . . . . . . . . . Kinetic 197 | . 108 36 22 2 . . . . 6 15 . . . . . . . . . . . . . . . . 8 Thermal 117 | 11 . . 55 . . 1 . . 6 15 . 1 3 . . . . . . . . . . 21 4 . . Explosive 69 | . . 4 4 . . 5 . . . . . . 8 . . . 10 8 8 8 2 . . . . 1 11 Electromagnetic 11 | 11 . . . . . . . . . . . . . . . . . . . . . . . . . . . Robot Hit Streak 15 | 4 6 7 15 3 . 7 . . 6 7 . . 11 . . 3 . . . 5 . . . 6 1 1 9 Robot Miss Streak 5 | 2 5 5 3 . . . . . 5 2 . . . . . 1 . . . . . . . 1 2 . 3 Penetration Max . | . . . . . . . . . . . . . . . . . . . . . . . . . . . . Secondary Targets 2 | . . 2 . . . . . . . . . . . . . . . . . . . . . . . . . Max Gunslinging Chain 1 | . . 1 . . . . . . . . . . . . . . . . . . . . . . . . . Shots Hit Robots 407 | 10 56 20 34 22 2 50 2 1 6 11 . . 30 4 2 3 8 17 18 3 19 22 5 15 7 4 36 Core Hits 266 | 5 29 19 18 3 . 30 1 1 1 3 . . 22 1 1 . 28 25 16 13 10 4 2 6 3 3 22 Critical Kills 3 | . . . . . . 1 . . 1 . . . . . . . . . . . . . . 1 . . . Critical Parts Destroyed 7 | . . . . 7 . . . . . . . . . . . . . . . . . . . . . . . Critical Strikes 37 | 1 4 . 1 7 . 4 . . 1 . . . 5 . 1 . 2 1 . 1 . 3 2 1 . . 3 Burn 1 | 1 . . . . . . . . . . . . . . . . . . . . . . . . . . . Meltdown 2 | . . . . . . . . . 1 . . . . . . . . . . . . . . 1 . . . Destroy 1 | . . . 1 . . . . . . . . . . . . . . . . . . . . . . . . Blast 6 | . 4 . . . . . . . . . . . . . . . . . . . . . . . . . 2 Smash 8 | . . . . 7 . 1 . . . . . . . . . . . . . . . . . . . . . Sever 9 | . . . . . . 2 . . . . . . 5 . 1 . . . . . . . . . . . 1 Impale 10 | . . . . . . 1 . . . . . . . . . . 2 1 . 1 . 3 2 . . . . Melee Attacks 478 | . . 1 8 43 2 78 6 4 . . . . 56 10 7 . 24 32 28 4 22 32 10 17 26 27 41 Impact 67 | . . 1 8 43 . 15 . . . . . . . . . . . . . . . . . . . . . Slashing 245 | . . . . . . 58 4 4 . . . . 56 10 7 . . . . . . . . 12 26 27 41 Piercing 125 | . . . . . . 5 2 . . . . . . . . . 24 32 20 4 6 17 10 5 . . . Sneak Attacks 117 | . . . . 13 2 14 1 1 . . . . 12 3 . . 4 7 10 1 16 16 4 1 3 3 6 Combat Hostiles 6 | . . . . . . 3 . . . . . . . . . . . 1 . . . 1 . . . . 1 Follow-up Attacks 1 | . . . . . . . . . . . . . . . . . . . . . 1 . . . . . . Damage Inflicted 31209 | 158 1019 538 1010 2082 . 2937 116 84 173 279 . . 3060 369 105 . 1936 2417 1378 960 1017 408 527 1024 916 1165 7531 Guns 1212 | 158 93 327 435 19 . . . . 67 113 . . . . . . . . . . . . . . . . . Cannons 2570 | . 926 . 78 . . 26 . . 106 166 . . . . . . . . . . . . . 636 40 . 592 Explosions 12595 | . . 211 340 . . 290 . . . . . . 1251 . . . 1415 1437 885 865 899 . . . . 670 4332 Melee 14832 | . . . 157 2063 . 2621 116 84 . . . . 1809 369 105 . 521 980 493 95 118 408 527 388 876 495 2607 Ramming . | . . . . . . . . . . . . . . . . . . . . . . . . . . . . Kinetic 2392 | . 1019 327 255 19 . . . . 67 113 . . . . . . . . . . . . . . . . 592 Thermal 1357 | 75 . . 258 . . 26 . . 106 166 . . . . . . 50 . . . . . . 636 40 . . Explosive 12545 | . . 211 340 . . 290 . . . . . . 1251 . . . 1365 1437 885 865 899 . . . . 670 4332 Electromagnetic 83 | 83 . . . . . . . . . . . . . . . . . . . . . . . . . . . Impact 2694 | . . . 157 2063 . 474 . . . . . . . . . . . . . . . . . . . . . Slashing 8782 | . . . . . . 2060 100 84 . . . . 1809 369 105 . . . . . . . . 277 876 495 2607 Piercing 3356 | . . . . . . 87 16 . . . . . . . . . 521 980 493 95 118 408 527 111 . . . Highest Corruption 18 | . . 1 1 1 . . . . . . . . 2 . . . 2 3 3 4 4 . 2 18 5 8 18 Average Corruption 3 | . . 1 1 1 . . . . . . . . 1 . . . 1 2 3 3 4 . 1 3 4 5 13 Corruption Purged 2 | . . . . . . . . . . . . . 2 . . . . . . . . . . . . . . Corruption Blocked . | . . . . . . . . . . . . . . . . . . . . . . . . . . . . Effects 178 | . . 6 19 22 . . . . . . . . 1 . . . 8 2 18 19 . . . 11 5 12 55 Message Errors 47 | . . 2 1 7 . . . . . . . . . . . . 1 1 5 10 . . . 2 . 1 17 Matter Fused 41 | . . 4 5 4 . . . . . . . . . . . . 1 1 6 2 . . . 1 3 7 7 Heat Flow Errors 17 | . . . . 2 . . . . . . . . . . . . 4 . 1 2 . . . . 1 2 5 Energy Discharges 24 | . . . 2 2 . . . . . . . . . . . . . . 3 2 . . . 3 . 2 10 Parts Rejected 1 | . . . . . . . . . . . . . . . . . . . . . . . . . 1 . . Data Loss (minor) 19 | . . . 4 5 . . . . . . . . 1 . . . 1 . 2 . . . . . . . 6 Data Loss (major) 11 | . . . 1 1 . . . . . . . . . . . . 1 . . 2 . . . 2 . . 4 Misfires 4 | . . . 3 . . . . . . . . . . . . . . . . . . . . 1 . . . Alerts 5 | . . . 2 1 . . . . . . . . . . . . . . 1 1 . . . . . . . Misdirections 8 | . . . . . . . . . . . . . . . . . . . . . . . . 2 . . 6 Weapon Failures 1 | . . . 1 . . . . . . . . . . . . . . . . . . . . . . . . Overload Shots . | . . . . . . . . . . . . . . . . . . . . . . . . . . . . Overflow Damage 4992 | . 8 . . 1222 . 261 . . . 1 . . 424 188 . . 56 98 157 . 140 125 383 97 271 305 1256 Projectiles 180 | . 8 . . . . . . . . 1 . . . . . . . . . . . . . 85 16 . 70 Explosions 734 | . . . . . . . . . . . . . 141 . . . 6 93 23 . 140 . . . . . 331 Melee 4078 | . . . . 1222 . 261 . . . . . . 283 188 . . 50 5 134 . . 125 383 12 255 305 855 Knockbacks 26 | . 10 . 2 8 . 2 . . . . . . . . . . . . . . . . . . . . 4 Impact 12 | . . . 2 8 . 2 . . . . . . . . . . . . . . . . . . . . . Kinetic 13 | . 10 . . . . . . . . . . . . . . . . . . . . . . . . . 3 Secondary 1 | . . . . . . . . . . . . . . . . . . . . . . . . . . . 1 Self-Inflicted Damage 97 | . . . 49 . . 16 . . . . . . . . . . 32 . . . . . . . . . . Shots 7 | . . . 4 . . 2 . . . . . . . . . . 1 . . . . . . . . . . Rammed . | . . . . . . . . . . . . . . . . . . . . . . . . . . . . Targets Rammed . | . . . . . . . . . . . . . . . . . . . . . . . . . . . . Kicked . | . . . . . . . . . . . . . . . . . . . . . . . . . . . . Crushed . | . . . . . . . . . . . . . . . . . . . . . . . . . . . . Highest Temperature 428 | 330 48 . 70 260 . 34 . . 124 159 . 52 428 51 131 8 368 324 378 358 14 357 315 218 356 339 189 Average Temperature 67 | 167 20 . 12 117 . 11 . . 57 53 . 29 56 22 40 4 112 61 80 79 5 59 88 49 90 102 33 Received Heat Transfer 1897 | . 114 . 78 . . 228 . . 36 9 . . 396 . 9 . 33 12 354 25 4 12 9 9 71 135 363 Effects 15 | 2 . . . . . . . . . . . . 4 . . . . 1 . 2 . . 1 . 5 . . Shutdowns 1 | . . . . . . . . . . . . . . . . . . 1 . . . . . . . . . Energy Bleed 3 | 2 . . . . . . . . . . . . . . . . . . . . . . . . 1 . . Interference 7 | . . . . . . . . . . . . . 3 . . . . . . . . . 1 . 3 . . Short Circuit 3 | . . . . . . . . . . . . . . . . . . . . 2 . . . . 1 . . Damage (major) 1 | . . . . . . . . . . . . . 1 . . . . . . . . . . . . . . Siege Activations . | . . . . . . . . . . . . . . . . . . . . . . . . . . . . Martial Activations . | . . . . . . . . . . . . . . . . . . . . . . . . . . . . Shielding Activations . | . . . . . . . . . . . . . . . . . . . . . . . . . . . . Robots Disrupted . | . . . . . . . . . . . . . . . . . . . . . . . . . . . . Combat Hostiles . | . . . . . . . . . . . . . . . . . . . . . . . . . . . . Robots Corrupted 11 | . . . . 8 . 2 . . . . . . . . . . . . . . . . . . . . 1 Combat Hostiles 1 | . . . . . . 1 . . . . . . . . . . . . . . . . . . . . . Parts Fried 20 | . . . . 17 . 2 . . . . . . . . . . . . 1 . . . . . . . . Impact Corruptions 33 | . . . . 25 . 6 . . . . . . . . . . . . . . . . . . . . 2 Robots Melted 2 | . . . . . . . . . 1 . . . . . . . . . . . . . . 1 . . . Combat Hostiles 2 | . . . . . . . . . 1 . . . . . . . . . . . . . . 1 . . . Parts Melted 6 | . . . . . . . . . . . . . . . . . . . . . . . . 5 1 . . Heat Transferred 1119 | 296 . . 336 . . 37 . . 148 222 . . . . . . 80 . . . . . . . . . . Parts Sabotaged . | . . . . . . . . . . . . . . . . . . . . . . . . . . . . Parts Stolen . | . . . . . . . . . . . . . . . . . . . . . . . . . . . . Parts Stripped . | . . . . . . . . . . . . . . . . . . . . . . . . . . . . Power Chain Reactions . | . . . . . . . . . . . . . . . . . . . . . . . . . . . . Alert | -11 -10 -10 -10 -9 -9 -6 -6 -6 -6 -6 -6 -5 -5 -5 -5 -5 -4 -4 -4 -4 -4 -3 -3 -3 -2 -2 -2 ------- Run | Yrd Mat Min Sub Rec Scr Fac Was Fac Low Low Dat Pro Fac Upp Upp Zhi Pro Fac Upp Upp War Pro Res Qua Res Tes Frg Maximum Alert Level 3 | . 1 . . . . 3 1 . . . . . 2 . . . . 2 . . . . 1 1 1 1 1 Low Security (%) 78 | 100 75 100 . 100 . 12 87 100 . . . . 65 . . . . 45 . . . . 99 80 70 91 75 Level 1 14 | . 24 . . . . 52 12 . . . . . 5 . . . . 20 . . . . . 19 29 8 24 Level 2 5 | . . . . . . 17 . . . . . . 29 . . . . 33 . . . . . . . . . Level 3 1 | . . . . . . 18 . . . . . . . . . . . . . . . . . . . . . Level 4 . | . . . . . . . . . . . . . . . . . . . . . . . . . . . . Level 5 . | . . . . . . . . . . . . . . . . . . . . . . . . . . . . High Security . | . . . . . . . . . . . . . . . . . . . . . . . . . . . . Max Security . | . . . . . . . . . . . . . . . . . . . . . . . . . . . . Peak Influence 957 | 15 270 124 . 108 . 957 337 91 . . . . 647 . . . . 545 . . . . 196 234 365 229 285 Initial 332 | . . 45 . 18 . . 332 . . . . . . . . . . 149 . . . . 189 62 108 30 102 Average 127 | 2 132 13 . 14 . 415 81 17 . . . . 256 . . . . 302 . . . . 172 118 144 114 122 Influence Increases 11959 | 20 700 149 240 354 . 1572 26 118 462 198 . 78 1121 126 486 . 791 1119 593 352 383 505 72 529 667 431 867 Destroy 0b10 Robot/C 4720 | . 240 80 120 . . 420 . 20 220 120 . 40 180 60 320 . 500 460 440 200 280 360 . 120 100 80 360 Destroy 0b10 Robot/NC 545 | 20 85 30 . 90 . 65 . 5 . . . . 70 5 . . 30 45 5 . . 5 25 10 15 10 30 Destroy Leader 618 | . 30 20 20 . . 86 . 10 20 10 . . 40 10 30 . 40 84 50 30 . 20 4 12 52 . 50 Allied During Kill 1243 | . . . 10 . . 24 . 35 222 38 . 8 . 6 121 . 191 139 98 122 58 120 3 . 48 . . Trap Triggered on 0b10 50 | . . . . . . . . . . . . . . . . . . . . . . . . . 50 . . Successful Hack 404 | . 25 . . 33 . 19 . . . . . . 64 . . . . 52 . . . . . 40 69 38 64 Select Force Hacks 360 | . 60 . . 210 . . . 30 . . . . 30 . . . . 30 . . . . . . . . . Disable Machine 495 | . 15 . . . . 45 . 15 . . . . 60 . . . . 150 . . . . . 60 . 90 60 Anti-Garrison Action 150 | . . . . . . 150 . . . . . . . . . . . . . . . . . . . . . Destroy Structure 689 | . 5 19 . 21 . 43 26 3 . . . . 152 . . . . 114 . . . . 10 32 93 78 93 Partial Spotted 315 | . . . . . . 75 . . . . . . 45 . . . . 15 . . . . 30 30 45 15 60 Lose Combat Pursuer 2370 | . 240 . 90 . . 645 . . . 30 . 30 480 45 15 . 30 30 . . 45 . . 225 195 120 150 Influence Decreases 11706 | 20 584 265 202 392 . 621 977 67 434 277 . 78 572 516 463 182 553 863 716 568 461 300 243 446 806 303 797 Entered New Map 2074 | . . 71 . 20 . . 619 . 20 16 . . . 204 31 182 . 89 184 72 155 77 93 49 86 25 81 Time Decay 6403 | 20 574 194 152 372 . 401 228 67 334 134 . 78 402 302 362 . 253 254 392 446 196 123 90 190 175 218 446 Search Patrol Dispatched 200 | . . . . . . . . . . . . . 100 . . . . . . . . . . . . . 100 Lost Part 770 | . 10 . 30 . . 50 10 . . . . . 60 10 10 . 20 40 20 10 10 40 . 120 100 60 170 Lost Ally 1367 | . . . 20 . . 20 120 . 80 127 . . 10 . 60 . 280 180 120 40 100 60 60 10 80 . . Purge Threat 892 | . . . . . . 150 . . . . . . . . . . . 300 . . . . . 77 365 . . Squads Dispatched 67 | . 2 . . . . 11 . 2 . 1 . . 14 . . . 3 10 . . . . 2 2 5 8 7 Investigation 36 | . 2 . . . . 4 . 2 . . . . 9 . . . 3 7 . . . . 1 . 3 2 3 Extermination 11 | . . . . . . 2 . . . . . . 3 . . . . 1 . . . . . 2 1 2 . Reinforcement 14 | . . . . . . 3 . . . . . . 2 . . . . 1 . . . . . . 1 3 4 Assault 5 | . . . . . . 2 . . . 1 . . . . . . . 1 . . . . . . . 1 . Garrison 1 | . . . . . . . . . . . . . . . . . . . . . . . 1 . . . . Intercept . | . . . . . . . . . . . . . . . . . . . . . . . . . . . . Searches Triggered 2 | . . . . . . . . . . . . . 1 . . . . . . . . . . . . . 1 Unchained Authorized 1 | . . . . . . . . . . . . . . . . . . . . . . . 1 . . . . Construction Impeded 1 | . . . . . . 1 . . . . . . . . . . . . . . . . . . . . . Haulers Reinforced 2 | . . . . . . . . . . . . . 1 . . . . 1 . . . . . . . . . Active Scanning Responses . | . . . . . . . . . . . . . . . . . . . . . . . . . . . . Cargo Convoy Interrupts . | . . . . . . . . . . . . . . . . . . . . . . . . . . . . Stealth | -11 -10 -10 -10 -9 -9 -6 -6 -6 -6 -6 -6 -5 -5 -5 -5 -5 -4 -4 -4 -4 -4 -3 -3 -3 -2 -2 -2 --------- Run | Yrd Mat Min Sub Rec Scr Fac Was Fac Low Low Dat Pro Fac Upp Upp Zhi Pro Fac Upp Upp War Pro Res Qua Res Tes Frg Distress Signals 17 | . . 2 . . . 1 . . . . . . 1 . . . 1 1 . . . . 1 2 5 . 3 Communications Jammed . | . . . . . . . . . . . . . . . . . . . . . . . . . . . . Distress Signals . | . . . . . . . . . . . . . . . . . . . . . . . . . . . . Times Spotted 602 | . 28 10 22 . . 74 5 1 9 7 4 1 51 4 16 . 27 28 21 11 51 17 4 34 32 34 111 Peak Tracking Total 18 | . 5 3 4 . . 10 5 . 4 5 4 3 9 3 6 . 7 5 5 4 16 5 2 11 9 18 12 Tactical Retreats 74 | . 10 . 2 . . 14 . . . 2 . 1 14 2 1 . 2 2 . . 3 . . 6 6 3 6 Traps | -11 -10 -10 -10 -9 -9 -6 -6 -6 -6 -6 -6 -5 -5 -5 -5 -5 -4 -4 -4 -4 -4 -3 -3 -3 -2 -2 -2 ------- Run | Yrd Mat Min Sub Rec Scr Fac Was Fac Low Low Dat Pro Fac Upp Upp Zhi Pro Fac Upp Upp War Pro Res Qua Res Tes Frg Traps Triggered 13 | . 1 1 1 . . 2 . . . . . . 3 . . . . . . . . . . 1 1 1 2 Indirectly . | . . . . . . . . . . . . . . . . . . . . . . . . . . . . Trap Hack Attempts . | . . . . . . . . . . . . . . . . . . . . . . . . . . . . Triggered . | . . . . . . . . . . . . . . . . . . . . . . . . . . . . Disarmed . | . . . . . . . . . . . . . . . . . . . . . . . . . . . . Reprogrammed . | . . . . . . . . . . . . . . . . . . . . . . . . . . . . Reused 7 | . . . 1 . . . . . . . 1 . . . . . . . . . . . . . 5 . . Traps Extracted 2 | . . . . . . . . . . . . . . . . . . . . . 2 . . . . . . Installed 8 | . . . 1 . . 1 . . . . 1 . . . . . . . . . . . . . 5 . . Triggered 5 | . . . . . . . . . . . . . . . . . . . . . . . . . 5 . . Most Traps Carried 6 | . . . 1 . 2 2 1 1 1 1 1 . . 4 4 4 4 4 4 4 6 6 6 6 6 1 . Machines | -11 -10 -10 -10 -9 -9 -6 -6 -6 -6 -6 -6 -5 -5 -5 -5 -5 -4 -4 -4 -4 -4 -3 -3 -3 -2 -2 -2 ---------- Run | Yrd Mat Min Sub Rec Scr Fac Was Fac Low Low Dat Pro Fac Upp Upp Zhi Pro Fac Upp Upp War Pro Res Qua Res Tes Frg Machines Disabled 46 | . 1 . 1 . . 4 . 1 1 . . . 4 . 1 . 5 10 1 1 . 2 . 4 . 6 4 Max in Single Turn 2 | . 1 . 1 . . 1 . 1 1 . . . 1 . . . 1 . . 1 . . . 1 . 1 2 Garrison Access 8 | . . . . . . 1 . . . . . . 2 . . . . 1 . . . . 1 1 1 1 . Machines Repaired . | . . . . . . . . . . . . . . . . . . . . . . . . . . . . Machines Dismantled . | . . . . . . . . . . . . . . . . . . . . . . . . . . . . Machines Sabotaged . | . . . . . . . . . . . . . . . . . . . . . . . . . . . . Overloaded Fab Kills . | . . . . . . . . . . . . . . . . . . . . . . . . . . . . Hacking | -11 -10 -10 -10 -9 -9 -6 -6 -6 -6 -6 -6 -5 -5 -5 -5 -5 -4 -4 -4 -4 -4 -3 -3 -3 -2 -2 -2 --------- Run | Yrd Mat Min Sub Rec Scr Fac Was Fac Low Low Dat Pro Fac Upp Upp Zhi Pro Fac Upp Upp War Pro Res Qua Res Tes Frg Machines Accessed 146 | . 11 1 2 11 8 8 . 3 . . 4 . 23 1 1 9 3 13 . 2 6 . 3 10 8 10 9 Terminals 51 | . 8 . . 4 . 3 . 1 . . . . 9 . . . 1 4 . . . . 1 7 5 6 2 Fabricators 8 | . . . . . . 1 . . . . . . 1 . . . 1 1 . . . . . . . 1 3 Repair Stations 6 | . 1 . . . . . . . . . . . 3 . . . . 1 . . . . . 1 . . . Recycling Units 28 | . 2 . . 7 . 4 . . . . . . 5 . . . 1 4 . . . . 1 . 1 . 3 Scanalyzers 12 | . . . . . . . . 2 . . . . 3 . . . . 2 . . . . . 1 1 2 1 Garrison Access 7 | . . . . . . . . . . . . . 2 . . . . 1 . . . . 1 1 1 1 . Total Hacks 554 | . 36 1 4 23 63 28 . 9 . . 31 . 128 1 1 48 4 50 . 2 13 . 6 27 29 27 23 Successful 413 | . 15 1 4 14 63 15 . 4 . . 31 . 91 1 1 48 4 37 . 2 13 . 3 21 16 15 14 Failed 138 | . 21 . . 9 . 13 . 5 . . . . 37 . . . . 12 . . . . 3 6 12 11 9 Catastrophic 13 | . 2 . . 1 . 1 . . . . . . 3 . . . . . . . . . . . 2 2 2 Database Lockouts 3 | . . . . . . . . . . . . . . . . . . 1 . . . . . . 1 1 . Manual 142 | . 20 . . 14 . 13 . 3 . . . . 36 . . . 1 15 . . 1 . 1 10 16 7 5 Terminals 229 | . 30 . . 16 . 18 . 3 . . . . 60 . . . 1 23 . . . . 3 21 24 19 11 Fabricators 22 | . . . . . . 3 . . . . . . 5 . . . 2 3 . . . . . . . 2 7 Repair Stations 16 | . 3 . . . . . . . . . . . 9 . . . . 2 . . . . . 2 . . . Recycling Units 32 | . 3 . . 7 . 7 . . . . . . 5 . . . 1 4 . . . . 1 . 1 . 3 Scanalyzers 82 | . . . . . . . . 6 . . . . 47 . . . . 17 . . . . . 2 3 5 2 Garrison Access 9 | . . . . . . . . . . . . . 2 . . . . 1 . . . . 2 2 1 1 . Terminal Hacks 255 | . 6 1 4 3 63 9 . 2 . . 31 . 23 1 1 48 1 10 . 2 13 . 1 10 11 8 7 Record 140 | . 1 . 3 . 62 1 . 2 . . 11 . 5 . . 36 1 . . 1 11 . . 5 1 . . Part Schematic 23 | . . . . . . 2 . . . . 12 . 2 . . 4 . . . . . . . . . 3 . Robot Schematic 5 | . . . . . . . . . . . 5 . . . . . . . . . . . . . . . . Robot Analysis 6 | . . . . 1 . . . . . . . . 1 . . 4 . . . . . . . . . . . Prototype ID Bank 13 | . 1 . . 1 . 1 . . . . 3 . . . . 4 . 1 . . . . . 1 . . 1 Open Door 7 | . . 1 . . . . . . . . . . . 1 1 . . . . 1 2 . . . . 1 . Branch Access Points 3 | . . . . . . . . . . . . . 1 . . . . 1 . . . . . . 1 . . Emergency Access Points 1 | . . . . . . . . . . . . . 1 . . . . . . . . . . . . . . Machine Index 2 | . . . . . . . . . . . . . 1 . . . . . . . . . . . . 1 . Terminal Index 5 | . 1 . . . . . . . . . . . 1 . . . . 1 . . . . . 1 1 . . Recycling Unit Index 1 | . . . . . . . . . . . . . . . . . . . . . . . . . . 1 . Alert Level 6 | . . . . . . 2 . . . . . . 1 . . . . . . . . . . 1 1 1 . Unreport Threat 5 | . . . . . . 1 . . . . . . . . . . . . . . . . . 1 3 . . Locate Traps 12 | . 3 . . . . . . . . . . . 3 . . . . 2 . . . . 1 . 2 . 1 Dispatch Records 1 | . . . . . . . . . . . . . . . . . . . . . . . . . . . 1 Security Status 2 | . . . . . . . . . . . . . 1 . . . . . . . . . . . . . 1 Surveillance Status 1 | . . . . . . . . . . . . . . . . . . . . . . . . . 1 . . Investigation Status 1 | . . . . . . . . . . . . . . . . . . . . . . . . . . . 1 Extermination Status 1 | . . . . . . . . . . . . . 1 . . . . . . . . . . . . . . Reinforcement Status 1 | . . . . . . . . . . . . . 1 . . . . . . . . . . . . . . Recall Investigation 2 | . . . . . . . . . . . . . 1 . . . . 1 . . . . . . . . . Recall Extermination 1 | . . . . . . . . . . . . . 1 . . . . . . . . . . . . . . Recall Reinforcements 1 | . . . . . . . . . . . . . 1 . . . . . . . . . . . . . . Hauler Manifests 4 | . . . . 1 . 1 . . . . . . 1 . . . . 1 . . . . . . . . . Registered Components 2 | . . . . . . 1 . . . . . . . . . . . . . . . . . . . . 1 Registered Prototypes 1 | . . . . . . . . . . . . . . . . . . 1 . . . . . . . . . Zone Layout 5 | . . . . . . . . . . . . . . . . . . 2 . . . . . 1 1 . 1 Proto ID Catalog 2 | . . . 1 . 1 . . . . . . . . . . . . . . . . . . . . . . Protovariant Controls 1 | . . . . . . . . . . . . . . . . . . . . . . . . . . 1 . Fabricator Hacks 10 | . . . . . . 1 . . . . . . 2 . . . 2 3 . . . . . . . . 2 Network Status 3 | . . . . . . 1 . . . . . . 1 . . . . 1 . . . . . . . . . Load Schematic 4 | . . . . . . . . . . . . . 1 . . . 1 1 . . . . . . . . 1 Build 3 | . . . . . . . . . . . . . . . . . 1 1 . . . . . . . . 1 Repair Station Hacks 11 | . 2 . . . . . . . . . . . 5 . . . . 2 . . . . . 2 . . . Scan Component 5 | . 1 . . . . . . . . . . . 2 . . . . 1 . . . . . 1 . . . Repair 5 | . 1 . . . . . . . . . . . 2 . . . . 1 . . . . . 1 . . . Refit 1 | . . . . . . . . . . . . . 1 . . . . . . . . . . . . . . Recycling Unit Hacks 1 | . . . . . . 1 . . . . . . . . . . . . . . . . . . . . . Retrieve Components 1 | . . . . . . 1 . . . . . . . . . . . . . . . . . . . . . Scanalyzer 62 | . . . . . . . . 1 . . . . 42 . . . . 11 . . . . . 1 2 4 1 Insert Component 21 | . . . . . . . . . . . . . 15 . . . . 5 . . . . . . 1 . . Analyze 22 | . . . . . . . . . . . . . 17 . . . . 5 . . . . . . . . . Retrieve Study 19 | . . . . . . . . 1 . . . . 10 . . . . 1 . . . . . 1 1 4 1 Garrison Access Hacks 7 | . . . . . . . . . . . . . 2 . . . . 1 . . . . 1 1 1 1 . Seal Access 7 | . . . . . . . . . . . . . 2 . . . . 1 . . . . 1 1 1 1 . Unauthorized Hacks 67 | . 7 . . 11 . 4 . 1 . . . . 17 . . . 1 10 . . . . 1 7 2 2 4 Terminals 35 | . 5 . . 4 . . . . . . . . 10 . . . . 5 . . . . . 7 1 2 1 Assimilate 5 | . . . . . . . . . . . . . 2 . . . . 1 . . . . . 1 . 1 . Botnet 3 | . . . . . . . . . . . . . 2 . . . . . . . . . . 1 . . . Operators 5 | . . . . . . . . . . . . . 1 . . . . 1 . . . . . 1 1 . 1 Skim 22 | . 5 . . 4 . . . . . . . . 5 . . . . 3 . . . . . 4 . 1 . Fabricators 1 | . . . . . . . . . . . . . 1 . . . . . . . . . . . . . . Recompile 1 | . . . . . . . . . . . . . 1 . . . . . . . . . . . . . . Repair Stations . | . . . . . . . . . . . . . . . . . . . . . . . . . . . . Recycling Units 28 | . 2 . . 7 . 4 . . . . . . 5 . . . 1 4 . . . . 1 . 1 . 3 Tunnel 9 | . 2 . . 7 . . . . . . . . . . . . . . . . . . . . . . . Fedlink 18 | . . . . . . 4 . . . . . . 5 . . . 1 4 . . . . 1 . . . 3 Scrapoids 1 | . . . . . . . . . . . . . . . . . . . . . . . . . 1 . . Scanalyzers 3 | . . . . . . . . 1 . . . . 1 . . . . 1 . . . . . . . . . Extract 3 | . . . . . . . . 1 . . . . 1 . . . . 1 . . . . . . . . . Garrison Access . | . . . . . . . . . . . . . . . . . . . . . . . . . . . . Data Cores Recovered 2 | . . . . . . 1 . . . . . . . . . . . . . . . . 1 . . . . Used . | . . . . . . . . . . . . . . . . . . . . . . . . . . . . Hacking Detections 74 | . 10 . . 4 . 5 . 3 . . . . 14 . . . 1 8 . . . . 2 7 6 8 6 Full Trace Events 9 | . . . . . . . . 1 . . . . 2 . . . 1 2 . . . . . . 2 1 . Feedback Events 1 | . . . . . . . . . . . . . 1 . . . . . . . . . . . . . . Hackware Fried 1 | . . . . . . . . . . . . . 1 . . . . . . . . . . . . . . Feedback Blocked 1 | . . . . . . . . 1 . . . . . . . . . . . . . . . . . . . Robot Schematics Acquired 7 | . . . . . . . . . . . 5 . . . . . . . . . . . . . . 2 . Robots Built . | . . . . . . . . . . . . . . . . . . . . . . . . . . . . Authchips . | . . . . . . . . . . . . . . . . . . . . . . . . . . . . Time . | . . . . . . . . . . . . . . . . . . . . . . . . . . . . Total Robot Build Rating . | . . . . . . . . . . . . . . . . . . . . . . . . . . . . Part Schematics Acquired 51 | . . . . . . 2 . 2 . . 12 . 17 . . 4 . 6 . . . . . . . 8 . Parts Built 4 | . . . . . . . . . . . . . . . . . 2 1 . . . . . . . . 1 Authchips . | . . . . . . . . . . . . . . . . . . . . . . . . . . . . Time 186 | . . . . . . . . . . . . . . . . . 47 93 . . . . . . . . 46 Total Part Build Rating 26 | . . . . . . . . . . . . . . . . . 10 7 . . . . . . . . 9 Part Studies Acquired 19 | . . . . . . . . 1 . . . . 10 . . . . 1 . . . . . 1 1 4 1 Parts Repaired 5 | . 1 . . . . . . . . . . . 2 . . . . 1 . . . . . 1 . . . Time 148 | . 26 . . . . . . . . . . . 44 . . . . 50 . . . . . 28 . . . Parts Recycled . | . . . . . . . . . . . . . . . . . . . . . . . . . . . . Recycled Matter . | . . . . . . . . . . . . . . . . . . . . . . . . . . . . Retrieved Matter . | . . . . . . . . . . . . . . . . . . . . . . . . . . . . Retrieved Components 1 | . . . . . . 1 . . . . . . . . . . . . . . . . . . . . . Parts Scanalyzed 18 | . . . . . . . . . . . . . 14 . . . . 4 . . . . . . . . . Part Schematics Acquired 18 | . . . . . . . . . . . . . 14 . . . . 4 . . . . . . . . . Parts Damaged 3 | . . . . . . . . . . . . . 3 . . . . . . . . . . . . . . Bothacking | -11 -10 -10 -10 -9 -9 -6 -6 -6 -6 -6 -6 -5 -5 -5 -5 -5 -4 -4 -4 -4 -4 -3 -3 -3 -2 -2 -2 ------------ Run | Yrd Mat Min Sub Rec Scr Fac Was Fac Low Low Dat Pro Fac Upp Upp Zhi Pro Fac Upp Upp War Pro Res Qua Res Tes Frg Used RIF Installer . | . . . . . . . . . . . . . . . . . . . . . . . . . . . . Robots Hacked 12 | . . . . . 2 . . . . . . . . . . 3 . . 1 . 6 . . . . . . Non-combat . | . . . . . . . . . . . . . . . . . . . . . . . . . . . . Combat 12 | . . . . . 2 . . . . . . . . . . 3 . . 1 . 6 . . . . . . Robot Hacks Applied 12 | . . . . . 2 . . . . . . . . . . 3 . . 1 . 6 . . . . . . parse_system 12 | . . . . . 2 . . . . . . . . . . 3 . . 1 . 6 . . . . . . Relay Couplers Released 6 | . . . . . . 2 . . . . . . . . . . . 4 . . . . . . . . . Machine Destruction 2 | . . . . . . 2 . . . . . . . . . . . . . . . . . . . . . Programmers 4 | . . . . . . . . . . . . . . . . . . 4 . . . . . . . . . Fabnet Peak Effective % . | . . . . . . . . . . . . . . . . . . . . . . . . . . . . Robots Rewired 23 | . . . . . . . . . 1 1 . . . . 2 . 11 . 1 . 5 2 . . . . . Allies Hacked . | . . . . . . . . . . . . . . . . . . . . . . . . . . . . Hacks Repelled 2 | . . . . . . . . . . . . . . . . . . . 1 . 1 . . . . . . Allies | -11 -10 -10 -10 -9 -9 -6 -6 -6 -6 -6 -6 -5 -5 -5 -5 -5 -4 -4 -4 -4 -4 -3 -3 -3 -2 -2 -2 -------- Run | Yrd Mat Min Sub Rec Scr Fac Was Fac Low Low Dat Pro Fac Upp Upp Zhi Pro Fac Upp Upp War Pro Res Qua Res Tes Frg Total Allies 123 | . . . 7 . 1 . 18 . 1 7 . 6 1 8 7 . 18 10 9 6 5 8 5 1 5 . . Largest Group 18 | . . . 6 . 1 1 18 10 10 7 1 4 1 4 6 6 8 4 4 5 6 6 6 1 4 . . Highest-Rated Group 638 | . . . 114 . 75 75 638 363 363 344 32 324 26 324 392 392 392 324 324 371 329 403 418 10 256 . . Highest-Rated Ally 81 | . . . 19 . 75 75 50 46 46 81 32 81 26 81 81 81 81 81 81 81 64 81 81 10 64 . . Total Orders 21 | . . . . . 1 . . . . . 1 . . . . . . . . . 19 . . . . . . STAY 17 | . . . . . 1 . . . . . . . . . . . . . . . 16 . . . . . . FOLLOW 3 | . . . . . . . . . . . . . . . . . . . . . 3 . . . . . . RETURN 1 | . . . . . . . . . . . 1 . . . . . . . . . . . . . . . . Ally Attacks 820 | . . . 12 . . 19 153 5 65 22 . 6 . 9 53 . 122 66 63 37 81 51 21 . 35 . . Total Damage 24301 | . . . 123 . . 1155 4592 61 1267 523 . 151 . 367 1758 . 3821 2043 1365 1173 1978 2565 452 . 907 . . Kills 139 | . . . 2 . . 12 6 1 10 4 . 2 . 2 17 . 22 14 12 8 7 15 . . 5 . . Allies Corrupted 1 | . . . . . . . . . 1 . . . . . . . . . . . . . . . . . . Allies Melted 4 | . . . . . . 1 . . . 1 . . . . 1 . . . . . . . 1 . . . . Intel | -11 -10 -10 -10 -9 -9 -6 -6 -6 -6 -6 -6 -5 -5 -5 -5 -5 -4 -4 -4 -4 -4 -3 -3 -3 -2 -2 -2 ------- Run | Yrd Mat Min Sub Rec Scr Fac Was Fac Low Low Dat Pro Fac Upp Upp Zhi Pro Fac Upp Upp War Pro Res Qua Res Tes Frg Active Infowar (turns) 24814 | 51 1910 1251 885 2465 2302 661 785 351 752 1224 139 1697 981 666 835 149 741 555 922 1112 1140 659 191 381 401 504 1104 Optics 15911 | . . . . . . 622 785 351 752 1224 139 1697 981 666 835 149 741 555 922 1112 1140 659 191 381 401 504 1104 Sensors 157 | . . . . . . 11 . 139 7 . . . . . . . . . . . . . . . . . . IFF 2666 | . . . . . . 368 . . 746 160 20 1218 3 151 . . . . . . . . . . . . . Terrain 3002 | . . . . . . . . . . . . . . . . . . . 758 1112 350 595 74 113 . . . Structural 11068 | . . 599 170 2465 2302 325 . 140 742 994 124 1182 . 576 832 140 477 . . . . . . . . . . Seismic 7220 | 51 1910 652 715 . . 71 773 351 8 949 106 1180 28 . . . . . 2 . 184 219 . . 21 . . Decoding 625 | . . . . . . . . . . . . . . . . . . . . . . . 129 381 115 . . T.N.C. 610 | . . . . . . 390 217 . . . . . . . . . . . . . . . . . . . 3 Machine Analysis 375 | . . . . . . . . . . . . . . . . . . 375 . . . . . . . . . Cloaking 430 | . . . . . . . . . . . . . 307 6 . . . 94 23 . . . . . . . . Jamming 97 | . . . . . . . . . . . . . . . . . . . . . . . . 11 . . 86 Robot Analysis Total 6 | . . . . 1 . . . . . . . . 1 . . 4 . . . . . . . . . . . Derelict Logs Recovered 21 | . . 2 1 . 5 . . . . 1 . 2 . 1 3 . 2 . 2 2 . . . . . . . Drone Launches 3 | . . . . . . . . . . . 3 . . . . . . . . . . . . . . . . Drone Recoveries 2 | . . . . . . . . . . . 2 . . . . . . . . . . . . . . . . Decoded 0b10 Intel 16 | . . . . . . . . . . . . . . . . . . . . . . . 2 11 3 . . Traps 2 | . . . . . . . . . . . . . . . . . . . . . . . . 2 . . . Emergency Access 1 | . . . . . . . . . . . . . . . . . . . . . . . . 1 . . . Items 10 | . . . . . . . . . . . . . . . . . . . . . . . 1 7 2 . . Machines 1 | . . . . . . . . . . . . . . . . . . . . . . . . 1 . . . Patrols 1 | . . . . . . . . . . . . . . . . . . . . . . . 1 . . . . Guards 1 | . . . . . . . . . . . . . . . . . . . . . . . . . 1 . . Exploration | -11 -10 -10 -10 -9 -9 -6 -6 -6 -6 -6 -6 -5 -5 -5 -5 -5 -4 -4 -4 -4 -4 -3 -3 -3 -2 -2 -2 ------------- Run | Yrd Mat Min Sub Rec Scr Fac Was Fac Low Low Dat Pro Fac Upp Upp Zhi Pro Fac Upp Upp War Pro Res Qua Res Tes Frg Turns Passed 30822 | 156 2083 1274 2363 2525 6082 1009 785 351 752 1224 139 1697 1022 666 835 149 741 555 922 1112 1140 659 191 381 401 504 1104 Spaces Moved 23780 | 69 750 657 1455 1023 3332 1195 783 193 449 677 84 851 1438 859 882 160 1015 765 935 877 1307 595 334 651 726 592 1126 Core 265 | 5 . . 13 . 227 12 . . . . . . . . . . . . . . . . . . . . 8 Treads 4453 | 64 750 657 371 358 . . 253 193 449 677 84 597 . . . . . . . . . . . . . . . Legs 165 | . . . . . . . . . . . . . . . . . . . . . . . . . . . 165 Wheels 4845 | . . . 1071 665 3105 2 . . . . . . . . . . . . . . . . . . . . 2 Hover 12341 | . . . . . . . . . . . . 254 1438 859 882 160 1015 765 935 877 1307 595 334 651 726 592 951 Flight 1711 | . . . . . . 1181 530 . . . . . . . . . . . . . . . . . . . . Fastest Speed 18 | 50 160 160 110 130 50 34 34 152 152 152 155 104 40 44 44 48 44 40 38 38 38 39 24 24 19 18 18 Average Speed 97 | 152 232 160 141 234 176 45 79 152 152 154 155 139 42 45 74 48 45 44 43 41 48 41 27 32 26 23 61 Slowest Speed 650 | 160 240 240 650 560 280 440 240 160 152 155 155 155 108 48 113 48 113 102 104 110 99 106 35 95 108 33 138 Overloaded Moves 172 | . . . . . . . . . . . . . . . . . . . . . . . . . 32 40 100 Propulsion Burnouts . | . . . . . . . . . . . . . . . . . . . . . . . . . . . . Robots Hopped 7 | . . . . . . 7 . . . . . . . . . . . . . . . . . . . . . Potential Cave-ins 2 | . . . . . . . . . . . . . . . . . . . . . 2 . . . . . . Cave-ins Triggered . | . . . . . . . . . . . . . . . . . . . . . . . . . . . . Teleports 1 | . . . . . . . . . . . . . . . . . . . . . . . . . . 1 . Exploration Rate (%) 68 | 5 95 95 77 89 95 41 96 6 78 86 77 95 47 97 98 63 88 21 96 89 96 64 14 92 26 64 40 Regions Visited 27 Branch Regions 19 Pre-discovered Areas 25 | . 2 . . 7 8 1 . . . . 1 . . . 1 3 . . 1 1 . . . . . . . Known Exits Taken 16 | . . 1 1 . . . . 1 1 . . 1 1 1 1 . 1 1 1 1 . 1 1 1 1 . . Unknown Exits Taken 9 | 1 1 . . 1 1 . . . . 1 1 . . . . 1 . . . . 1 . . . . 1 . Scrap Searched 39 | . . 1 . . 7 . . . 2 6 . 2 . 4 3 . 5 . 4 3 . 2 . . . . . Spaces Dug 186 | . . 13 6 17 . 18 3 2 . 3 . 1 30 2 5 . 1 11 3 2 1 5 5 11 17 15 15 Terrain Destroyed 517 | . . 26 18 17 . 36 3 2 1 6 . 1 79 2 5 . 18 46 72 70 13 5 5 16 20 24 32 Melee 153 | . . . 1 17 . 16 3 2 . . . . 29 2 5 . 1 11 3 2 1 5 5 8 17 15 10 Projectile 31 | . . . 11 . . . . . 1 6 . 1 1 . . . . . . . . . . 8 3 . . AOE 333 | . . 26 6 . . 20 . . . . . . 49 . . . 17 35 69 68 12 . . . . 9 22 Terrain Rammed . | . . . . . . . . . . . . . . . . . . . . . . . . . . . . Walls Destroyed . | . . . . . . . . . . . . . . . . . . . . . . . . . . . . Machines Disabled . | . . . . . . . . . . . . . . . . . . . . . . . . . . . . Actions | -11 -10 -10 -10 -9 -9 -6 -6 -6 -6 -6 -6 -5 -5 -5 -5 -5 -4 -4 -4 -4 -4 -3 -3 -3 -2 -2 -2 --------- Run | Yrd Mat Min Sub Rec Scr Fac Was Fac Low Low Dat Pro Fac Upp Upp Zhi Pro Fac Upp Upp War Pro Res Qua Res Tes Frg Total 30205 | 95 977 838 1667 1080 3555 1532 938 243 510 831 92 1359 1738 1118 1043 229 1251 917 1408 1601 1804 983 415 769 871 905 1436 Wait 4397 | 8 137 148 109 . 85 172 105 30 28 94 3 482 141 230 132 53 116 81 355 675 421 339 48 29 65 224 87 Move 23740 | 68 749 656 1454 1022 3331 1181 782 192 448 676 83 850 1437 858 881 159 1014 764 934 876 1306 594 333 650 725 591 1126 Hop 7 | . . . . . . 7 . . . . . . . . . . . . . . . . . . . . . Pick Up 302 | 1 16 3 10 5 74 4 19 5 1 13 . 8 24 3 4 1 8 4 9 9 5 2 6 8 16 13 31 Fast Attach 171 | 7 5 . 10 . 3 25 11 1 . 1 . . 10 2 6 5 2 3 6 7 11 . 3 11 5 7 30 Attach 148 | . 1 2 3 . 4 11 1 2 3 2 . 9 15 3 . . 2 7 4 4 3 4 3 12 12 14 27 Detach 54 | . . . 1 . . 5 . . 1 . 1 . 5 2 . . . 2 1 . 1 . . 3 . 5 27 Swap 207 | . 9 4 8 6 3 7 . 4 1 8 3 4 15 5 2 2 11 11 28 8 18 14 5 5 9 9 8 Drop 332 | . 6 2 15 2 53 36 15 5 5 11 1 5 24 5 8 5 15 5 17 10 16 . 7 14 4 14 32 Fire 260 | 11 54 22 48 2 . 6 . . 6 15 . 1 11 . . 4 10 8 8 8 2 . . 20 4 1 19 Melee 469 | . . 1 8 43 2 77 5 4 . . . . 56 10 7 . 22 32 26 4 21 30 10 17 26 27 41 Ram . | . . . . . . . . . . . . . . . . . . . . . . . . . . . . Kick . | . . . . . . . . . . . . . . . . . . . . . . . . . . . . Crush . | . . . . . . . . . . . . . . . . . . . . . . . . . . . . Escape Stasis 7 | . . . . . . . . . . . . . . . . . . . . . . . . . . . 7 Rewire 102 | . . . . . . . . . 17 11 . . . . 3 . 51 . 20 . . . . . . . . Trap 8 | . . . 1 . . 1 . . . . 1 . . . . . . . . . . . . . 5 . . Miscellaneous 1 | . . . . . . . . . . . . . . . . . . . . . . . . . . . 1 Route ------- -11/Scrapyard -10/Materials (discovered 5 exits: *Mat x3 / *Min / Sub) -10/Mines (discovered 3 exits: *Mat x2 / *Sub) -10/Subcaves (discovered 3 exits: *Mat x2 / *Rec) -9/Recycling (discovered 2 exits: [*Fac] / *Scr) -9/Scraptown (discovered 2 exits: *Fac x2) -6/Factory (discovered 2 exits: *Fac x2) -6/Waste -6/Factory -6/Lower Caves -6/Lower Caves (discovered 2 exits: Fac / *Dat) -6/Data Miner -5/Proximity Caves -5/Factory (discovered 5 exits: *Fac x3 / *Upp x2) -5/Upper Caves -5/Upper Caves (discovered 2 exits: *Fac / *Zhi) -5/Zhirov -4/Proximity Caves -4/Factory (discovered 4 exits: *Res x2 / *Upp x2) -4/Upper Caves -4/Upper Caves (discovered 2 exits: *Res / *War) -4/Warlord -3/Proximity Caves -3/Research (discovered 2 exits: Res / *Qua) -3/Quarantine -2/Research (discovered 2 exits: *Tes x2) -2/Testing (discovered 3 exits: [*Acc] / [*Sec] / *Frg) -2/Protoforge History --------- Turn | Location | Event 3 | -11/Scrapyard | Discovered new exit (range 15) 157 | -11/Scrapyard | Entered Materials 311 | -10/Materials | Build established: Mutant 567 | -10/Materials | Discovered new exit (range 15) 686 | -10/Materials | Discovered new exit (range 12) 1033 | -10/Materials | Discovered new exit (range 7) 1159 | -10/Materials | Repaired Lgt. Treads 1493 | -10/Materials | Discovered new exit (range 16) 2055 | -10/Materials | Identified exit to Subcaves 2097 | -10/Materials | Learned location of 3 exits from Materials 2150 | -10/Materials | Learned 2 Mines zone layouts 2163 | -10/Materials | Learned Storage emergency access door positions 2168 | -10/Materials | Learned 2 Mines zone layouts 2169 | -10/Materials | Learned Storage trap positions 2219 | -10/Materials | Learned Storage interactive machine intel 2240 | -10/Materials | Entered Mines 2241 | -10/Mines | Assembled infested the area 2241 | -10/Mines | Identified exit to Materials 2478 | -10/Mines | Met a Derelict who couldn't figure out how to use a Trap Extractor 2641 | -10/Mines | Learned Materials trap positions 3232 | -10/Mines | Received a Rocket Launcher from a helpful Derelict 3514 | -10/Mines | Entered Subcaves 3515 | -10/Subcaves | Identified exit to Materials 3656 | -10/Subcaves | Visited Clippyterm 3660 | -10/Subcaves | Identified exit to Recycling 3720 | -10/Subcaves | Discovered exit to Materials (range 5) 3778 | -10/Subcaves | Curiously followed by a Cobbler waking with a query about "LVR3C" 3977 | -10/Subcaves | Shifting Twisted Machinery released Enh. Flamer 3983 | -10/Subcaves | Shifting Twisted Machinery released Sub. Laser 4049 | -10/Subcaves | A swath of the cavern ceiling suddenly collapsed 4126 | -10/Subcaves | Build established: Scavenger-Mutant 4174 | -10/Subcaves | A Subdweller sparked back to life 4174 | -10/Subcaves | A Subdweller sparked back to life 4174 | -10/Subcaves | A Subdweller sparked back to life 4202 | -10/Subcaves | Core integrity fell below 50% 4247 | -10/Subcaves | Found Prototype Energy Cannon 4316 | -10/Subcaves | Core integrity fell below 20% 4565 | -10/Subcaves | Visited triangular shrine 4572 | -10/Subcaves | Found Prototype Device 4572 | -10/Subcaves | Identified V3-11A's Pendant 4577 | -10/Subcaves | Befriended Subdweller 4832 | -10/Subcaves | Befriended Subdweller 4832 | -10/Subcaves | Befriended Subdweller 5099 | -10/Subcaves | Visited 4L-MR0's lab 5108 | -10/Subcaves | Identified Powered Cannon 5116 | -10/Subcaves | Found Flightbrick 5287 | -10/Subcaves | Befriended Subdweller 5287 | -10/Subcaves | Befriended Subdweller 5442 | -10/Subcaves | Ambushed by Subdwellers from Twisted Machinery 5442 | -10/Subcaves | Befriended Subdweller 5442 | -10/Subcaves | Befriended Subdweller 5512 | -10/Subcaves | Lost 3 allies 5728 | -10/Subcaves | Build established: Mutant 5877 | -10/Subcaves | Entered Recycling 5903 | -9/Recycling | Scanned before Scraplab entrance 6528 | -9/Recycling | Discovered new exit (range 10) 7703 | -9/Recycling | Discovered new exit (range 11) 7709 | -9/Recycling | Entered Scraplab 8402 | -9/Recycling | Entered Scraptown 8402 | -9/Scraptown | System corruption cleaned by C-Scrubber 8532 | -9/Scraptown | Delivered V3-11A's Pendant to T0-NE2 in exchange for information 8583 | -9/Scraptown | Heard Great Nut preacher, LISTEN AND RECITE! 8705 | -9/Scraptown | Discovered new exit (range 11) 8803 | -9/Scraptown | Scanned Subdweller tech in exchange for log data 8807 | -9/Scraptown | Learned Research emergency access door positions 8808 | -9/Scraptown | Learned location of 2 exits from Upper Caves 8810 | -9/Scraptown | Learned Research stockpile data 8812 | -9/Scraptown | Learned location of Testing (-2) 8814 | -9/Scraptown | Learned Factory stockpile data 8915 | -9/Scraptown | Visited Cyclists 8957 | -9/Scraptown | Visited IN-MT5's Study 9083 | -9/Scraptown | Visited Assassins FH 9122 | -9/Scraptown | Visited Awakened 9167 | -9/Scraptown | Visited UFD Registry 9167 | -9/Scraptown | Registered with UFD as "Fiberspreader" 9191 | -9/Scraptown | Visited The Evicted 9238 | -9/Scraptown | Visited Cave Peace 9314 | -9/Scraptown | Visited Symbiants 9424 | -9/Scraptown | Guru changed UFD alias to "Megaglider" 10040 | -9/Scraptown | Visited Science Guys 10096 | -9/Scraptown | Visited Curators Association 10145 | -9/Scraptown | Visited Botcube Research 10201 | -9/Scraptown | Delivered Scrap Shield to a Scientist 10381 | -9/Scraptown | Visited Junk Repository 10444 | -9/Scraptown | Visited Infowarlord's Domain 10467 | -9/Scraptown | Visited DA-N13 Charitable Foundation 10484 | -9/Scraptown | Found DCF Scrap (30 items) 10511 | -9/Scraptown | Visited Junk Repository 10560 | -9/Scraptown | Visited Chapter 10 10593 | -9/Scraptown | Visited Observation Area 10673 | -9/Scraptown | Visited Cartography Club 10746 | -9/Scraptown | Found Surveybot 17 Chip 10771 | -9/Scraptown | Found Deep Structural Scanner 10776 | -9/Scraptown | Learned location of Recycling (-9) 10776 | -9/Scraptown | Learned location of Proximity Caves (-4) 10776 | -9/Scraptown | Learned 8 Factory zone layouts 10776 | -9/Scraptown | Learned 8 Research zone layouts 10776 | -9/Scraptown | Learned 12 Research zone layouts 10776 | -9/Scraptown | Learned 4 Storage zone layouts 10776 | -9/Scraptown | Learned 4 Recycling zone layouts 10776 | -9/Scraptown | Learned 8 Lower Caves zone layouts 10776 | -9/Scraptown | Learned 20 Lower Caves zone layouts 10776 | -9/Scraptown | Learned 8 Proximity Caves zone layouts 10776 | -9/Scraptown | Learned 12 Proximity Caves zone layouts 10776 | -9/Scraptown | Learned 4 Hub_04(d) zone layouts 10776 | -9/Scraptown | Learned Materials emergency access door positions 10776 | -9/Scraptown | Learned location of 2 exits from Lower Caves 10776 | -9/Scraptown | Learned location of 2 exits from Upper Caves 10776 | -9/Scraptown | Learned location of 1 exit from Proximity Caves 10809 | -9/Scraptown | Found Spectral Analyzer 11043 | -9/Scraptown | Received an X-ray algorithm 11364 | -9/Scraptown | Found Lrg. Botcube 11464 | -9/Scraptown | Build established: Hauler-Mutant 12108 | -9/Scraptown | Entered Cyclist Reading Room 12114 | -9/Scraptown | Learned location of Exiles (-9) 12114 | -9/Scraptown | Learned location of Zion (-7) 13650 | -9/Scraptown | Lrg. Botcube activated 13682 | -9/Scraptown | Lrg. Botcube completed mutation into treaded form, armed with 1 gun, 3 cannons. 13956 | -9/Scraptown | Discovered new exit (range 5) 14383 | -9/Scraptown | Met Optimus 14383 | -9/Scraptown | Accepted into 0bPrime 14484 | -9/Scraptown | Entered Factory 14484 | -6/Factory | Accompanied by 1 ally 14484 | -6/Factory | Evolved 8 slots: Propulsion x3, Utility x5 14485 | -6/Factory | Identified exit to Factory 14491 | -6/Factory | Attached Flightbrick, gained temporary slots: Utility x3 14873 | -6/Factory | Found Lrg. Botcube 14998 | -6/Factory | Loaded intel: 7 recycling unit locations 15016 | -6/Factory | Build established: Mutant 15054 | -6/Factory | Learned location of Protoforge (-2) 15493 | -6/Factory | Manually triggered Chute Trap 15493 | -6/Factory | Sucked down chute 15493 | -6/Factory | Entered Waste 15497 | -6/Waste | Spotted C-40 Crusher 15500 | -6/Waste | Spotted C-40 Crusher 15500 | -6/Waste | Spotted C-40 Crusher 15503 | -6/Waste | Found Prototype Device 15503 | -6/Waste | Identified Adv. EM Shield 15509 | -6/Waste | Spotted C-40 Crusher 15528 | -6/Waste | Spotted C-40 Crusher 15538 | -6/Waste | Spotted C-40 Crusher 15541 | -6/Waste | Warlord forces began an assault 15560 | -6/Waste | Allies destroyed C-40 Crusher 15570 | -6/Waste | Crushed by Compactor (1 part destroyed, 1 dropped) 15583 | -6/Waste | Allies destroyed C-40 Crusher 15586 | -6/Waste | Allies destroyed C-40 Crusher 15596 | -6/Waste | Allies destroyed C-40 Crusher 15600 | -6/Waste | Allies destroyed C-40 Crusher 15623 | -6/Waste | Lost 7 allies 15680 | -6/Waste | Discovered new exit (range 13) 15883 | -6/Waste | Found Broken Exp. Terrain Scan Processor 15993 | -6/Waste | Build established: Scavenger-Mutant 16278 | -6/Waste | Entered Factory 16278 | -6/Factory | Accompanied by 10 allies 16433 | -6/Factory | Discovered new exit (range 20) 16513 | -6/Factory | Identified exit to Lower Caves 16573 | -6/Factory | Allied Derelicts emerged from ambush trap array 16629 | -6/Factory | Entered Lower Caves 16629 | -6/Lower Caves | Accompanied by 10 allies 16630 | -6/Lower Caves | Identified exit to Lower Caves 16631 | -6/Lower Caves | UFD Scientist delivered a prototype 16634 | -6/Lower Caves | Found Prototype Protection 16637 | -6/Lower Caves | Identified Enh. Scrap Shield 16870 | -6/Lower Caves | Encountered a Warlord checkpoint 16925 | -6/Lower Caves | Build established: Mutant 17034 | -6/Lower Caves | Attracted the attention of an 0b10 outpost 17066 | -6/Lower Caves | Lost 4 allies 17372 | -6/Lower Caves | Spotted B-75 Beast 17381 | -6/Lower Caves | Entered another Lower Caves area 17381 | -6/Lower Caves | Accompanied by 7 allies 17445 | -6/Lower Caves | Spotted B-75 Beast 17471 | -6/Lower Caves | Prototype Device suddenly appears! 17485 | -6/Lower Caves | Found Prototype Device 17492 | -6/Lower Caves | Lost 3 allies 17496 | -6/Lower Caves | Identified Amulet of Y3-NDR 17535 | -6/Lower Caves | Lost 3 allies 17575 | -6/Lower Caves | Joined by bewildered Wizard 17576 | -6/Lower Caves | Joined by bewildered Wizard 17598 | -6/Lower Caves | Joined by bewildered Wizard 17599 | -6/Lower Caves | Joined by bewildered Wizard 17844 | -6/Lower Caves | Joined by bewildered Wizard 17846 | -6/Lower Caves | Joined by bewildered Wizard 17934 | -6/Lower Caves | Discovered new exit (range 6) 17999 | -6/Lower Caves | Attracted the attention of an 0b10 outpost 18070 | -6/Lower Caves | Lost 3 allies 18530 | -6/Lower Caves | Learned location of 1 exit from Factory 18605 | -6/Lower Caves | Entered Data Miner 18605 | -6/Data Miner | Accompanied by 1 ally 18605 | -6/Data Miner | Discovered new exit (range 6) 18623 | -6/Data Miner | Met Data Miner 18666 | -6/Data Miner | Learned location of Section 7 (-2) 18666 | -6/Data Miner | Acquired the access code to Warlord's prototype stash 18700 | -6/Data Miner | Received God Mode back door access code from Data Miner 18729 | -6/Data Miner | Data Conduit disabled 18744 | -6/Data Miner | Entered Proximity Caves 18773 | -5/Proximity Caves | Lost 3 parts (1p2u) 18926 | -5/Proximity Caves | Joined by bewildered Wizard 18927 | -5/Proximity Caves | Joined by bewildered Wizard 18937 | -5/Proximity Caves | Joined by bewildered Wizard 18938 | -5/Proximity Caves | Joined by bewildered Wizard 19151 | -5/Proximity Caves | Joined by bewildered Wizard 19151 | -5/Proximity Caves | Joined by bewildered Wizard 19298 | -5/Proximity Caves | Learned location of 1 exit from Factory 19744 | -5/Proximity Caves | Learned Factory machine intel 19897 | -5/Proximity Caves | Build established: Scavenger-Mutant 20441 | -5/Proximity Caves | Entered Factory 20441 | -5/Factory | Evolved 2 slots: Power x1, Propulsion x1 20442 | -5/Factory | Identified exit to Factory 20442 | -5/Factory | Identified exit to Upper Caves 20443 | -5/Factory | Loaded intel: 278 machine locations 20522 | -5/Factory | Lost 4 parts (1p2n1u) 20650 | -5/Factory | Repaired Hyb. Fission Core+ 20679 | -5/Factory | Hacking Suite fried by hacking feedback 20781 | -5/Factory | Loaded intel: 8 recycling unit locations 20886 | -5/Factory | Discovered exit to Factory (range 17) 21016 | -5/Factory | Repaired Missile Launcher? 21090 | -5/Factory | Found Prototype Launcher 21111 | -5/Factory | Identified Mni. Smartbomb Launcher 21341 | -5/Factory | Search patrols dispatched 21372 | -5/Factory | Spotted B-75 Beast 21378 | -5/Factory | Learned Research stockpile data 21413 | -5/Factory | Discovered exit to Factory (range 6) 21419 | -5/Factory | Build established: Hacker-Mutant 21463 | -5/Factory | Entered Upper Caves 21464 | -5/Upper Caves | Identified exit to Upper Caves 21535 | -5/Upper Caves | Attracted the attention of an 0b10 checkpoint 21596 | -5/Upper Caves | Joined by bewildered Wizard 21596 | -5/Upper Caves | Joined by bewildered Wizard 21609 | -5/Upper Caves | Joined by bewildered Wizard 21610 | -5/Upper Caves | Joined by bewildered Wizard 21728 | -5/Upper Caves | Joined by bewildered Wizard 21729 | -5/Upper Caves | Joined by bewildered Wizard 21734 | -5/Upper Caves | Joined by bewildered Wizard 21749 | -5/Upper Caves | Joined by bewildered Wizard 22129 | -5/Upper Caves | Entered another Upper Caves area 22129 | -5/Upper Caves | Accompanied by 4 allies 22130 | -5/Upper Caves | Identified exit to Zhirov 22145 | -5/Upper Caves | Encountered a Warlord checkpoint 22155 | -5/Upper Caves | Learned 4 Factory zone layouts 22180 | -5/Upper Caves | Spotted B-75 Beast 22217 | -5/Upper Caves | Joined by bewildered Wizard 22245 | -5/Upper Caves | Joined by bewildered Wizard 22325 | -5/Upper Caves | Joined by bewildered Wizard 22436 | -5/Upper Caves | Learned location of Warlord (-4) 22498 | -5/Upper Caves | Learned location of 1 exit from Factory 22942 | -5/Upper Caves | Joined by bewildered Wizard 22964 | -5/Upper Caves | Entered Zhirov 22964 | -5/Zhirov | Accompanied by 6 allies 22964 | -5/Zhirov | Discovered new exit (range 3) 22973 | -5/Zhirov | Met Zhirov 22982 | -5/Zhirov | Learned location of Quarantine (-3) 22992 | -5/Zhirov | Zhirov requested help retrieving the SGEMP Prototype 23001 | -5/Zhirov | Found Alien Artifact 23001 | -5/Zhirov | Identified Integrated Reactor 23001 | -5/Zhirov | Installed Integrated Reactor, increased core energy generation (+10) 23031 | -5/Zhirov | Found Alien Artifact 23113 | -5/Zhirov | Entered Proximity Caves 23113 | -4/Proximity Caves | Accompanied by 6 allies 23334 | -4/Proximity Caves | Spotted B-86 Titan 23377 | -4/Proximity Caves | Joined by bewildered Wizard 23378 | -4/Proximity Caves | Joined by bewildered Wizard 23378 | -4/Proximity Caves | Joined by bewildered Wizard 23384 | -4/Proximity Caves | Joined by bewildered Wizard 23398 | -4/Proximity Caves | Lost 4 allies 23409 | -4/Proximity Caves | Attracted the attention of an 0b10 checkpoint 23445 | -4/Proximity Caves | Learned Research emergency access door positions 23460 | -4/Proximity Caves | Snuck into a huge 0b10 base via the rear entrance 23543 | -4/Proximity Caves | Discovered exit to Factory (range 8) 23600 | -4/Proximity Caves | Joined by bewildered Wizard 23600 | -4/Proximity Caves | Joined by bewildered Wizard 23669 | -4/Proximity Caves | Lost 14 allies 23684 | -4/Proximity Caves | Loaded intel: 1 recycling unit location 23724 | -4/Proximity Caves | Fabricated Adv. Terrain Scanner (x2) 23748 | -4/Proximity Caves | Lost 3 allies 23781 | -4/Proximity Caves | Spotted B-86 Titan 23854 | -4/Proximity Caves | Entered Factory 23854 | -4/Factory | Evolved 2 slots: Propulsion x1, Utility x1 23855 | -4/Factory | Identified exit to Research 23856 | -4/Factory | Identified exit to Upper Caves 23894 | -4/Factory | Joined by bewildered Wizard 23894 | -4/Factory | Joined by bewildered Wizard 23928 | -4/Factory | Repaired Gravmag Array+ 23950 | -4/Factory | Joined by bewildered Wizard 23950 | -4/Factory | Joined by bewildered Wizard 24002 | -4/Factory | Loaded intel: 8 recycling unit locations 24023 | -4/Factory | Central database locked down 24023 | -4/Factory | Identified Transdimensional Reconstructor 24048 | -4/Factory | Joined by bewildered Wizard 24049 | -4/Factory | Joined by bewildered Wizard 24147 | -4/Factory | Found Exp. Hacking Suite 24202 | -4/Factory | Fabricated Assault Drone Bay? 24213 | -4/Factory | Discovered exit to Research (range 7) 24239 | -4/Factory | Joined by bewildered Wizard 24245 | -4/Factory | Joined by bewildered Wizard 24245 | -4/Factory | Joined by bewildered Wizard 24293 | -4/Factory | Lost 3 allies 24354 | -4/Factory | First assault squad dispatched 24409 | -4/Factory | Entered Upper Caves 24410 | -4/Upper Caves | Identified exit to Upper Caves 24427 | -4/Upper Caves | Joined by bewildered Wizard 24428 | -4/Upper Caves | Joined by bewildered Wizard 24478 | -4/Upper Caves | Joined by bewildered Wizard 24478 | -4/Upper Caves | Joined by bewildered Wizard 24578 | -4/Upper Caves | Joined by bewildered Wizard 24632 | -4/Upper Caves | Spotted B-86 Titan 24633 | -4/Upper Caves | Learned Research terminal intel 24697 | -4/Upper Caves | Lost 4 allies 24722 | -4/Upper Caves | Joined by bewildered Wizard 24722 | -4/Upper Caves | Joined by bewildered Wizard 24731 | -4/Upper Caves | Joined by bewildered Wizard 24801 | -4/Upper Caves | Build established: Scavenger-Scout 25331 | -4/Upper Caves | Entered another Upper Caves area 25331 | -4/Upper Caves | Accompanied by 1 ally 25332 | -4/Upper Caves | Identified exit to Warlord 25339 | -4/Upper Caves | Discovered exit to Research (range 20) 25416 | -4/Upper Caves | Found Alien Artifact 25520 | -4/Upper Caves | Joined by bewildered Wizard 25520 | -4/Upper Caves | Joined by bewildered Wizard 25521 | -4/Upper Caves | Joined by bewildered Wizard 25546 | -4/Upper Caves | Joined by bewildered Wizard 25589 | -4/Upper Caves | Identified Dimensional Node Initializer 25589 | -4/Upper Caves | Initialized slip node 25786 | -4/Upper Caves | Joined by bewildered Wizard 25816 | -4/Upper Caves | Encountered a Warlord checkpoint 25899 | -4/Upper Caves | Joined by bewildered Wizard 26383 | -4/Upper Caves | Learned Research stockpile data 26389 | -4/Upper Caves | Found Alien Artifact 26389 | -4/Upper Caves | Identified Core Expander 26389 | -4/Upper Caves | Installed Core Expander, added new Utility slot 26443 | -4/Upper Caves | Entered Warlord 26443 | -4/Warlord | Accompanied by 1 ally 26452 | -4/Warlord | Discovered new exit (range 20) 26457 | -4/Warlord | System corruption cleaned by Quarantine Array 26500 | -4/Warlord | Opened Warlord's prototype stash 26503 | -4/Warlord | Found Prototype Reactor 26503 | -4/Warlord | Identified Vortex Chain Reactor 26509 | -4/Warlord | Found Prototype Processor 26509 | -4/Warlord | Identified Exp. Target Analyzer 26699 | -4/Warlord | Visited the Vortex Lab 26703 | -4/Warlord | Met EX-DEC 26704 | -4/Warlord | Found Prototype Energy Cannon 26704 | -4/Warlord | Identified Vortex Driver 26710 | -4/Warlord | Warlord's base attacked by MAIN.C 26740 | -4/Warlord | Rebuked by Warlord 27054 | -4/Warlord | Spotted B-86 Titan 27060 | -4/Warlord | Warlord forces counterattacked 27070 | -4/Warlord | Spotted B-90 Cyclops 27072 | -4/Warlord | Lost 8 allies 27075 | -4/Warlord | Build established: Scavenger-Mutant 27086 | -4/Warlord | Allies destroyed B-86 Titan 27098 | -4/Warlord | Allies destroyed B-90 Cyclops 27125 | -4/Warlord | Lost 4 allies 27156 | -4/Warlord | Spotted Striker 27160 | -4/Warlord | Spotted Executioner 27167 | -4/Warlord | Spotted Executioner 27208 | -4/Warlord | Lost 16 allies 27210 | -4/Warlord | Spotted Executioner 27211 | -4/Warlord | Spotted Striker 27216 | -4/Warlord | Destroyed Striker 27222 | -4/Warlord | Found Prototype Processor 27222 | -4/Warlord | Identified Exp. Core Analyzer 27226 | -4/Warlord | Found Prototype Device 27226 | -4/Warlord | Identified Adv. Kinecellerator 27280 | -4/Warlord | Lost 11 allies 27374 | -4/Warlord | Opened side exit 27381 | -4/Warlord | Spotted Striker 27385 | -4/Warlord | Warlord base infiltrated, sounded retreat 27534 | -4/Warlord | Spotted B-86 Titan 27534 | -4/Warlord | Spotted B-90 Cyclops 27583 | -4/Warlord | Entered Proximity Caves 27584 | -3/Proximity Caves | Lost 4 allies 27699 | -3/Proximity Caves | Joined by bewildered Wizard 27700 | -3/Proximity Caves | Joined by bewildered Wizard 27700 | -3/Proximity Caves | Joined by bewildered Wizard 27711 | -3/Proximity Caves | Lost 4 parts (2n2u) 27753 | -3/Proximity Caves | Joined by bewildered Wizard 27844 | -3/Proximity Caves | Build established: Scavenger-Scout 27921 | -3/Proximity Caves | Spotted B-86 Titan 28119 | -3/Proximity Caves | Joined by bewildered Wizard 28119 | -3/Proximity Caves | Joined by bewildered Wizard 28144 | -3/Proximity Caves | Discovered exit to Research (range 20) 28221 | -3/Proximity Caves | Lost 3 allies 28242 | -3/Proximity Caves | Entered Research 28242 | -3/Research | Accompanied by 3 allies 28242 | -3/Research | Evolved 2 slots: Propulsion x2 28243 | -3/Research | Identified exit to Quarantine 28244 | -3/Research | Identified exit to Research 28247 | -3/Research | Loaded intel: 24 terminal locations 28249 | -3/Research | Joined by bewildered Wizard 28249 | -3/Research | Joined by bewildered Wizard 28249 | -3/Research | Joined by bewildered Wizard 28260 | -3/Research | Spotted B-86 Titan 28340 | -3/Research | Loaded intel: 5 recycling unit locations 28400 | -3/Research | Unchained authorized (DW-4LL) 28403 | -3/Research | Garrison activated, responded to threat 28430 | -3/Research | Spotted B-90 Cyclops 28433 | -3/Research | Entered Quarantine 28468 | -3/Quarantine | Repaired Antigrav System+ 28521 | -3/Quarantine | Found Alien Slashing Weapon 28521 | -3/Quarantine | Identified Sigix Broadsword 28626 | -3/Quarantine | Found Alien Artifact 28626 | -3/Quarantine | Identified Core Reset Matrix 28626 | -3/Quarantine | Used Core Reset Matrix 28630 | -3/Quarantine | Detected hypermatrix surge 28630 | -3/Quarantine | Sensed 14 artifacts in vicinity 28633 | -3/Quarantine | Attached Powered Cannon, gained temporary slot: Power 28654 | -3/Quarantine | Discovered exit to Research (range 9) 28669 | -3/Quarantine | Lost 4 parts (3n1u) 28744 | -3/Quarantine | Found Matter Drive 28790 | -3/Quarantine | DW-4LL burst out of a wall 28792 | -3/Quarantine | System corruption reached 10% 28800 | -3/Quarantine | Cryocooling Duct disabled 28814 | -3/Quarantine | Entered Research 28814 | -2/Research | Evolved 2 slots: Propulsion x1, Utility x1 28824 | -2/Research | Lost 4 parts (1n3u) 28918 | -2/Research | Spotted B-90 Cyclops 28961 | -2/Research | Scrapoids reinforcements arrived? 28972 | -2/Research | Lost 7 parts (2p3n1u1w) 29079 | -2/Research | Identified exit to Testing 29096 | -2/Research | Central database locked down 29100 | -2/Research | Spotted B-90 Cyclops 29120 | -2/Research | Spotted B-90 Cyclops 29215 | -2/Research | Entered Testing 29233 | -2/Testing | Lost 3 parts (2n1u) 29337 | -2/Testing | Found Prototype Ballistic Cannon 29337 | -2/Testing | Identified Omega Cannon 29347 | -2/Testing | Found Prototype Energy Gun 29347 | -2/Testing | Identified Hyp. EM Gauss Rifle 29360 | -2/Testing | Protovariant out of control (PP-TS9CYT1LU9) 29360 | -2/Testing | Unleashed a protovariant (PP-TS9CYT1LU9) 29373 | -2/Testing | Central database locked down 29382 | -2/Testing | Spotted Striker 29382 | -2/Testing | Spotted Striker 29389 | -2/Testing | Build established: Hacker-Sprinter 29389 | -2/Testing | Found Prototype Launcher 29397 | -2/Testing | Identified Z-bomb Delivery System 29449 | -2/Testing | Found Prototype Device 29449 | -2/Testing | Identified Exp. Shock Absorption System 29453 | -2/Testing | Unstable Terrabomb Derivative detonated 29479 | -2/Testing | Found Prototype Processor 29479 | -2/Testing | Identified Exp. Signal Interpreter 29536 | -2/Testing | Found Prototype Protection 29547 | -2/Testing | Warped through subspace 29555 | -2/Testing | Identified SHELL Armor 29576 | -2/Testing | Lost 3 parts (3n) 29645 | -2/Testing | Found Prototype Launcher 29659 | -2/Testing | Discovered new exit (range 9) 29662 | -2/Testing | Found Prototype Special Weapon 29696 | -2/Testing | Spotted Fortress 29717 | -2/Testing | Discovered new exit (range 5) 29717 | -2/Testing | Discovered new exit (range 6) 29719 | -2/Testing | Entered Protoforge 29720 | -2/Protoforge | Sensed 2 artifacts in vicinity 29747 | -2/Protoforge | Spotted Hotshot 29747 | -2/Protoforge | Spotted Hotshot 29767 | -2/Protoforge | Spotted Hotshot 29779 | -2/Protoforge | Spotted Hotshot 29779 | -2/Protoforge | Spotted Hotshot 29793 | -2/Protoforge | Spotted Hotshot 29798 | -2/Protoforge | Identified Containment Facilitator 29803 | -2/Protoforge | Destroyed Hotshot 29803 | -2/Protoforge | Destroyed Hotshot 29820 | -2/Protoforge | Superfortress began startup sequence 29869 | -2/Protoforge | Spotted Overlord 29869 | -2/Protoforge | Spotted AP7-3 29871 | -2/Protoforge | Spotted AP7-3 29879 | -2/Protoforge | System corruption reached 10% 29904 | -2/Protoforge | Lost 3 parts (1p2n) 29908 | -2/Protoforge | Spotted EXE-6 29931 | -2/Protoforge | Spotted EXE-6 29931 | -2/Protoforge | Spotted EXE-6 29969 | -2/Protoforge | Search patrols dispatched 29982 | -2/Protoforge | UFD initiated attack on Protoforge 29982 | -2/Protoforge | Loaded intel: 3 recycling unit locations 29991 | -2/Protoforge | Core integrity fell below 50% 30004 | -2/Protoforge | Destroyed EXE-6 30018 | -2/Protoforge | Optimus greeted in Protoforge 30024 | -2/Protoforge | Lost 8 parts (1p7n) 30030 | -2/Protoforge | Found Prototype Device 30030 | -2/Protoforge | Identified Exp. Kinecellerator 30042 | -2/Protoforge | Forge Plexus network access discovered 30045 | -2/Protoforge | Lost 7 allies 30049 | -2/Protoforge | Found Exp. Armor Integrity Analyzer 30052 | -2/Protoforge | Spotted Decapitator 30127 | -2/Protoforge | Found Unknown Device 30129 | -2/Protoforge | Identified Scrap Suit 30201 | -2/Protoforge | Fabricated Adv. Heavy Siege Treads? 30208 | -2/Protoforge | Build established: Scavenger-Gladiator 30232 | -2/Protoforge | Found Cep. XC Strikerail 30235 | -2/Protoforge | Found Exp. ECM Suite 30311 | -2/Protoforge | Spotted Striker 30311 | -2/Protoforge | Spotted Striker 30344 | -2/Protoforge | Spotted Striker 30345 | -2/Protoforge | Spotted Striker 30397 | -2/Protoforge | Lost 18 allies 30451 | -2/Protoforge | Spotted Executioner 30464 | -2/Protoforge | Found Prototype Device 30464 | -2/Protoforge | Identified Adv. Kinecellerator 30466 | -2/Protoforge | Found Exp. Core Analyzer 30470 | -2/Protoforge | Found Exp. Core Analyzer 30516 | -2/Protoforge | Spotted Executioner 30516 | -2/Protoforge | Installed UFD Drillbomb at designated target 30516 | -2/Protoforge | UFD reported confirmed Drillbomb installation 30517 | -2/Protoforge | Spotted Striker 30549 | -2/Protoforge | Spotted Executioner 30599 | -2/Protoforge | Lost 8 allies 30616 | -2/Protoforge | Destroyed Striker 30625 | -2/Protoforge | Destroyed Hotshot 30644 | -2/Protoforge | Core integrity fell below 20% 30656 | -2/Protoforge | Spotted Striker 30657 | -2/Protoforge | Spotted Striker 30662 | -2/Protoforge | Spotted Striker 30663 | -2/Protoforge | Spotted Executioner 30734 | -2/Protoforge | Spotted Executioner 30734 | -2/Protoforge | Spotted Striker 30755 | -2/Protoforge | Spotted Striker 30759 | -2/Protoforge | Spotted Striker 30762 | -2/Protoforge | Spotted Hotshot 30763 | -2/Protoforge | Spotted Hotshot 30765 | -2/Protoforge | Spotted Hotshot 30767 | -2/Protoforge | Spotted Hotshot 30769 | -2/Protoforge | Spotted Striker 30774 | -2/Protoforge | Lost 19 allies 30780 | -2/Protoforge | Destroyed Hotshot 30791 | -2/Protoforge | Spotted Hotshot 30812 | -2/Protoforge | Lost 3 allies 30823 | -2/Protoforge | Destroyed by Striker with Plasma Lance Last Messages --------------- 30816_ HV Slug penetrates Wall. 30816_ HV Slug penetrates Earth. 30816_ Slug penetrates Striker. 30816_ Hvy. Armor Plating destroyed. 30818_ HV Slug penetrates Striker. 30818_ Striker suffers critical hit (Destroy). 30818_ Striker destroyed. 30819_ Critical hit (Impale). 30819_ Sigix Broadsword destroyed. 30820_ Slug penetrates Striker. 30820_ Slug penetrates Earth. 30820_ Striker destroyed. 30820_ HV Slug penetrates Striker. 30820_ Striker suffers critical hit (Destroy). 30820_ Striker knocked back. 30820_ HV Slug penetrates Striker. 30820_ Slug penetrates Earth. 30822_ HV Slug penetrates Earth. 30822_ Slug penetrates Striker. 30822_ Slug penetrates Earth. Map ----- +----------------------------------------------------+ | ???????##????????????????#########?????#########?? | | ???????##???????????????????????##?????##????????? | | ???????##???????????????????????##?????##????????? | | ???????##???????????????????????##?????##????????? | | ???????##???????????????????????##?????##????????? | | ???????##???????????????????????#########????????? | | ???????##???????????????????????#########????????? | | ???????##????????????????????????????????????????? | | #########????????????????????????????????????????? | | #########????????????????????????????????????????? | | ?????????????????????????????????????????????????? | | ?????????????????????????????????????????????????? | | ?????????????????????????????????????????????????? | | ?????????????????????????????????????????????????? | | ?????????#############???????????????????????????? | | ?????????#############???????????????????????????? | | ?????????## """ """ ##???????????????????????????? | | ?????????## """ """ ##???????????????????????????? | | ?????????## """ """ ##?????##????????????????????? | | ?????????## ##??### #?##?????????????????? | | ?????????## ; ??# # ## #?????????????????? | | ?????????## # ### # # #?????????????????## | | ?????????##?? ## #??????????#########= | | ####?????##???? ### ############# ##%## | | ####?????########;#;##;#!%K###;;####;;####""""# "" | | ##?????#### #;% % %%@SS % % % %%%% % %% | | ##???#####" #; &sj%SS % % % E %%% | | [##???######"## %% % E/%%% %% %%% n% nE E E"% | | %*#######! ; % #;;#;;%;####;%;#######;%;!!; "" | | !%#######!"%" # # ## ## ####### ####[### | | *!"* [%+ " # ;### ### "" ##????##?? | | [%####### " "" "% "#?##?## "" %"##?????# ## # | | ####### "" " "#????## """ %" ##????#?? ## | | %## #### ; "##???## """ " #???????#?# | | "!" #"#""##" ########[==% [ #?????????#### | | !]# %"%""""" % """#######+%!############????? | | %%% % &%% % % ==!!% "##########????? | | %% % %%%%%% %% % % !% # ##????? | | /[! %%%[%% % % % % % # ##????? | | %# #""%=%%""% ""#+###"### " " ##????? | | ## ####"%" "!"" "" #### # """" " ##????? | | # " =% "[ #" "### # """ ##????? | | " # " "# #### + """ " ##????? | | " # " ## #### # """"" ##????? | | # # # ## #### # " ##????? | | # # " # ## + # ##????? | | # # " # ## #####"############????? | | # # # ## ## ########????? | | # ###### ## ## #####???????? | | ################ ## ## "" ##???????? | +----------------------------------------------------+ Best States ------------- Heat Dissipation 87 Energy Generation 65 Energy Capacity 1115 Matter Stores 300 Matter Capacity 300 Sight Range 24 Robot Scan Range 15 Terrain Scan Range 20 Terrain Scan Density 1210 Jamming Range 14 Cloak Strength 3 Corruption Containment 12 Corruption Block 16 Armor Coverage 1025 Resistance: EX 75 Melee Speed Boost 30 Phase Shifting 10 Evasion (%) 81 Targeting Accuracy 6 Melee Accuracy 16 Target Analysis 10 Core Analysis 12 Armor Integrity Analysis 50 Recoil Reduction 4 Offensive Hacking 50 Defensive Hacking 36 Authchip Count 1 Trap Extractor Capacity 6 Item Schematics ----------------- Imp. Quantum Reactor | -2/Testing | Archive Hvy. Regenerative Plating | -2/Testing | Hacked Med. Regenerative Plating | -2/Testing | Hacked Lgt. Regenerative Plating | -2/Testing | Hacked Exp. Q-thruster | -2/Testing | Archive Exp. Coolant Injector | -2/Testing | Archive Centrium Heavy Treads | -2/Testing | Archive Prc. Phase Gun | -2/Testing | Archive Robot Schematics ------------------ S-43 Plague | -2/Testing | Archive K-01 Serf | -2/Testing | Archive Fabricated ------------ Adv. Terrain Scanner | x2 | -4/Proximity Caves Assault Drone Bay | x1 | -4/Factory Adv. Heavy Siege Treads | x1 | -2/Protoforge | Preloaded Repaired ---------- Lgt. Treads | 33% | -10/Materials Hyb. Fission Core | 15% | -5/Factory Missile Launcher | 8% | -5/Factory Gravmag Array | 35% | -4/Factory Antigrav System | 3% | -3/Quarantine Studied --------- Quantum Reactor | -2/Research | Hacked Antigrav Array | -2/Testing | Hacked Lgt. Quantum Reactor | -2/Testing | Hacked Imp. Antigrav System | -2/Testing | Hacked Antigrav System | -2/Testing | Hacked Cmb. Linear Gravjet | -2/Protoforge | Hacked Alien Tech Used ----------------- Integrated Reactor Dimensional Node Initializer Core Expander Sigix Broadsword Core Reset Matrix Matter Drive Transdimensional Reconstructor Achievements -------------- All Kinds Of Bad News Bending The Rules Botjacking Fine I'll Do It Myself Hack The Planet Hackathon Hard Hitter Inventory(Loot) Longdome?! My Bad Oh No You Don't! Origins Rodney's Helpers SUBSUB Super-what Now? Watch This! We Are One Challenges ------------ None Game ------ Seed DisposableSalvagingRocket Manual? 0 Play Time 06:35:58 Cumulative 28.5 hours Start 2025.10.25 @ 03:35:04 End 2025.10.25 @ 22:49:58 Sessions 9 Manual Loads 0 Difficulty Rogue Special Mode None Game No. 14 Rogue 14 Adventurer 0 Explorer 0 Win Type - Total 0 Types 0/0/0/0/0/0/0/0/0/0 Lore% 48 Gallery% 41 Achievement% 39 Wizard Run 0 Options --------- Layout 0 ASCII 0 Keyboard 0 Movement Mouse Keybinds 0 Fullscreen 1 Font 24/Smallcaps Map View 183x50 Zoom Use 0% Tactical HUD 1 Map Filters NONE Filters NONE Steam 1 RUN: 2647725e-a0d5-4f88-a9c3-587f727fe680